{"text_format":"1","workbook":"xlsx","n_sheets":1,"sheets":["2025"],"not_rendered":{"charts":0,"images":1,"macros":0,"external_links":0,"defined_names":1,"comments":0,"pivot_tables":0},"unopened":[],"bounds":{"document_bytes":16777216,"sheet_cells":100000,"rows_first":2000,"rows_last":500,"rows_between":2000,"halvings":0,"cell_chars":16384,"cell_head_chars":4096},"cells_cut":0,"cells_raw":0,"read":"whole","date_system":"1900"}

{"sheet":"2025","index":0,"n_rows":803,"n_cols":24,"rows_kept":803,"cut":false,"hidden":false,"merged":[[3,1,3,5],[10,9,10,19],[10,20,10,21],[5,1,5,3],[10,7,11,7],[10,8,11,8],[10,6,11,6]]}
["trvalky - mladé rostliny na multiplatech  - 2025"]
["objednávkový formulář - kupní smlouva mezi"]
["odběratel"]
["firma"]
["adresa"]
["IČ/DIČ"]
["dodavatel"]
["FLORENSIS HOLLAND B.V. zastoupený THOOLEN s.r.o., IČ 48950700, Rakovník"]
[null,null,null,null,null,null,null,"týden dodání",null,6,8,10,12,16,18,20,22,24,32,34]
["ceny jsou uváděny vč. licencí a dopravy do vaší firmy",null,null,null,null,null,null,"počet plat celkem",{"$f":"SUM(J10+K10+L10+M10+N10+O10+P10+Q10+R10+S10+T10)","v":0},{"$f":"SUM(J13:J1095)","v":0},{"$f":"SUM(K13:K1095)","v":0},0,0,0,0,{"$f":"SUM(P13:P1095)","v":0},0,0,0,0,null,null,{"$f":"SUM(W13:W1760)","v":0},{"$f":"SUM(X13:X1760)","v":0}]
[null,null,null,null,null,null,"mn. v 1buňce","pikírováno","licence","expedice",null,null,null,null,null,null,null,null,null,null,"cena"]
["code","plato","gar.","Artikelbezeichnung","skupina","new",null,null,null,"5.2","19.2","5.3","19.3","16.4","30.4","14.5","28.5","11.6","6.8","20.8","rostlina","plato","za objed.","s DPH"]
["12715",180,178,"Acaena microphylla Kupferteppich","řízek",null,1,"N",null,null,null,null,null,null,null,null,null,null,null,null,9.4,1673.02,{"$f":"V13*(J13+K13+L13+M13+N13+O13+P13+Q13+R13+S13+T13)","v":0},{"$f":"W13*1.12","v":0}]
["41716",128,126,"Agastache aurantiaca Sunny Sparks™ Pink Impr.","řízek",null,1,"Y","A",null,null,null,null,null,null,null,null,null,null,null,14.68,1849.24,0,0]
["41717",128,126,"Agastache aurantiaca Sunny Sparks™ Tangerine","řízek",null,1,"Y","A",null,null,null,null,null,null,null,null,null,null,null,14.68,1849.24,0,0]
["33148",128,126,"Agastache foeniculum Little Adder","řízek",null,1,"Y","A",null,null,null,null,null,null,null,null,null,null,null,15.98,2013.1,0,0]
["11325",288,284,"Achillea filipendulina Cloth of Gold","semenáč",null,2,"N",null,null,null,null,null,null,null,null,null,null,null,null,3.49,992.3,0,0]
["11326",288,284,"Achillea millefolium Cerise Queen","semenáč",null,2,"N",null,null,null,null,null,null,null,null,null,null,null,null,3.49,992.3,0,0]
["36502",128,126,"Achillea millefolium Milly Rock Cherry","řízek",null,1,"Y","A",null,null,null,null,null,null,null,null,null,null,null,12.48,1572.6,0,0]
["42084",84,82,"Achillea millefolium Milly Rock Mixmasters® Dance","řízek",null,3,"Y","A",null,null,null,null,null,null,null,null,null,null,null,29.23,2397.1,0,0]
["31886",128,126,"Achillea millefolium Milly Rock Pink","řízek",null,1,"Y","A",null,null,null,null,null,null,null,null,null,null,null,12.48,1572.6,0,0]
["35588",128,126,"Achillea millefolium Milly Rock Red","řízek",null,1,"Y","A",null,null,null,null,null,null,null,null,null,null,null,12.48,1572.6,0,0]
["31888",128,126,"Achillea millefolium Milly Rock Rose","řízek",null,1,"Y","A",null,null,null,null,null,null,null,null,null,null,null,12.48,1572.6,0,0]
["36503",128,126,"Achillea millefolium Milly Rock Yellow Terracotta","řízek",null,1,"Y","A",null,null,null,null,null,null,null,null,null,null,null,12.48,1572.6,0,0]
["11328",288,284,"Achillea millefolium Summer Pastels Mix","semenáč",null,2,"N",null,null,null,null,null,null,null,null,null,null,null,null,5.29,1502.86,0,0]
["11329",288,284,"Achillea ptarmica Pearl","semenáč",null,2,"N",null,null,null,null,null,null,null,null,null,null,null,null,8.5299999999999994,2421.87,0,0]
["11330",288,284,"Achillea tomentosa Aurea","semenáč",null,2,"N",null,null,null,null,null,null,null,null,null,null,null,null,3.98,1129.17,0,0]
["19823",128,126,"Ajuga reptans Black Scallop","řízek",null,1,"N","A",null,null,null,null,null,null,null,null,null,null,null,13.44,1693.08,0,0]
["18659",128,126,"Ajuga reptans Braunherz","řízek",null,1,"N",null,null,null,null,null,null,null,null,null,null,null,null,10.18,1282.95,0,0]
["18660",128,126,"Ajuga reptans Burgundy Glow","řízek",null,1,"N",null,null,null,null,null,null,null,null,null,null,null,null,10.18,1282.95,0,0]
["42972",128,126,"Ajuga reptans Feathered Friends™ Cordial Canary","řízek","new",1,"N","A",null,null,null,null,null,null,null,null,null,null,null,15.5,1953.34,0,0]
["42973",128,126,"Ajuga reptans Feathered Friends™ Fancy Finch","řízek","new",1,"N","A",null,null,null,null,null,null,null,null,null,null,null,15.5,1953.34,0,0]
["18661",128,126,"Ajuga reptans Chocolate Chips","řízek",null,1,"N",null,null,null,null,null,null,null,null,null,null,null,null,10.18,1282.95,0,0]
["42379",128,126,"Ajuga reptans Princess Elsa","řízek","new",1,"N","A",null,null,null,null,null,null,null,null,null,null,null,14.74,1856.95,0,0]
["19809",84,84,"Alcea rosea Chaters Double Apricot","semenáč",null,2,"N",null,null,null,null,null,null,null,null,null,null,null,null,11.1,932.57,0,0]
["19809",288,284,"Alcea rosea Chaters Double Apricot","semenáč",null,1,"N",null,null,null,null,null,null,null,null,null,null,null,null,4.4400000000000004,1261.7,0,0]
["11336",288,284,"Alcea rosea Chaters Double Mix","semenáč",null,1,"N",null,null,null,null,null,null,null,null,null,null,null,null,4.4400000000000004,1261.7,0,0]
["11337",84,84,"Alcea rosea Chaters Double Purple","semenáč",null,2,"N",null,null,null,null,null,null,null,null,null,null,null,null,11.1,932.57,0,0]
["11337",288,284,"Alcea rosea Chaters Double Purple","semenáč",null,1,"N",null,null,null,null,null,null,null,null,null,null,null,null,4.4400000000000004,1261.7,0,0]
["11338",84,84,"Alcea rosea Chaters Double Rose","semenáč",null,2,"N",null,null,null,null,null,null,null,null,null,null,null,null,11.1,932.57,0,0]
["11338",288,284,"Alcea rosea Chaters Double Rose","semenáč",null,1,"N",null,null,null,null,null,null,null,null,null,null,null,null,4.4400000000000004,1261.7,0,0]
["11339",84,84,"Alcea rosea Chaters Double Scarlet","semenáč",null,2,"N",null,null,null,null,null,null,null,null,null,null,null,null,11.1,932.57,0,0]
["11339",288,284,"Alcea rosea Chaters Double Scarlet","semenáč",null,1,"N",null,null,null,null,null,null,null,null,null,null,null,null,4.4400000000000004,1261.7,0,0]
["11342",84,84,"Alcea rosea Chaters Double Violet","semenáč",null,2,"N",null,null,null,null,null,null,null,null,null,null,null,null,11.1,932.57,0,0]
["11343",84,84,"Alcea rosea Chaters Double White","semenáč",null,2,"N",null,null,null,null,null,null,null,null,null,null,null,null,11.1,932.57,0,0]
["11343",288,284,"Alcea rosea Chaters Double White","semenáč",null,1,"N",null,null,null,null,null,null,null,null,null,null,null,null,4.4400000000000004,1261.7,0,0]
["11341",84,84,"Alcea rosea Chaters Double Yellow","semenáč",null,2,"N",null,null,null,null,null,null,null,null,null,null,null,null,11.1,932.57,0,0]
["11341",288,284,"Alcea rosea Chaters Double Yellow","semenáč",null,1,"N",null,null,null,null,null,null,null,null,null,null,null,null,4.4400000000000004,1261.7,0,0]
["11344",288,284,"Alcea rosea Nigra","semenáč",null,1,"N",null,null,null,null,null,null,null,null,null,null,null,null,4.45,1263.8699999999999,0,0]
["18496",180,178,"Alcea rosea Spring Celebrities™ Apricot","semenáč",null,1,"N",null,null,null,null,null,null,null,null,null,null,null,null,8.39,1492.59,0,0]
["16549",180,178,"Alcea rosea Spring Celebrities™ Carmine Rose","semenáč",null,1,"N",null,null,null,null,null,null,null,null,null,null,null,null,8.39,1492.59,0,0]
["18497",180,178,"Alcea rosea Spring Celebrities™ Crimson","semenáč",null,1,"N",null,null,null,null,null,null,null,null,null,null,null,null,8.39,1492.59,0,0]
["16598",180,178,"Alcea rosea Spring Celebrities™ White","semenáč",null,1,"N",null,null,null,null,null,null,null,null,null,null,null,null,8.39,1492.59,0,0]
["14694",288,284,"Alchemilla erythropoda Alma","semenáč",null,1,"N",null,null,null,null,null,null,null,null,null,null,null,null,6.4,1817.89,0,0]
["11346",288,284,"Alchemilla mollis Irish Silk","semenáč",null,1,"Y",null,null,null,null,null,null,null,null,null,null,null,null,3.48,987.95,0,0]
["11349",288,284,"Alyssum montanum Berggold","semenáč",null,2,"N",null,null,null,null,null,null,null,null,null,null,null,null,3.89,1105.27,0,0]
["13761",288,284,"Alyssum montanum Luna Yellow 2.0","semenáč","new",2,"N",null,null,null,null,null,null,null,null,null,null,null,null,5.28,1499.6,0,0]
["16861",288,284,"Ammophila arenaria","semenáč",null,1,"Y",null,null,null,null,null,null,null,null,null,null,null,null,10.1,2867.25,0,0]
["11357",288,284,"Androsace septentrionalis Stardust","semenáč",null,2,"N",null,null,null,null,null,null,null,null,null,null,null,null,5.51,1564.78,0,0]
["18490",288,284,"Anemanthele lessoniana Sirocco","semenáč",null,3,"N",null,null,null,null,null,null,null,null,null,null,null,null,5.59,1587.59,0,0]
["37120",84,84,"Anemone hupehensis Emmy Deep Rose","řízek",null,1,"N","A",null,null,null,null,null,null,null,null,null,null,null,41.35,3473.73,0,0]
["41852",84,84,"Anemone hupehensis Emmy Pink Blush","řízek",null,1,"N","A",null,null,null,null,null,null,null,null,null,null,null,41.35,3473.73,0,0]
["34503",84,84,"Anemone hupehensis Exp. Compact Rose","semenáč",null,2,"N",null,null,null,null,null,null,null,null,null,null,null,null,19.28,1619.51,0,0]
["11358",180,178,"Anemone hupehensis Rose Shades","semenáč",null,1,"N",null,null,null,null,null,null,null,null,null,null,null,null,8.09,1440.17,0,0]
["14780",180,178,"Anemone multifida Annabella Deep Rose","semenáč",null,2,"N",null,null,null,null,null,null,null,null,null,null,null,null,7.47,1329.19,0,0]
["14779",180,178,"Anemone multifida Annabella White","semenáč",null,2,"N",null,null,null,null,null,null,null,null,null,null,null,null,7.47,1329.19,0,0]
["11361",180,178,"Anemone sylvestris Snow White","semenáč",null,1,"N",null,null,null,null,null,null,null,null,null,null,null,null,6.77,1204.5899999999999,0,0]
["11364",180,178,"Anthemis carpartica Karpartenschnee","semenáč",null,1,"N",null,null,null,null,null,null,null,null,null,null,null,null,6.2,1103.1500000000001,0,0]
["11371",288,284,"Aquilegia caerulea Biedermeier Mix","semenáč",null,1,"Y",null,null,null,null,null,null,null,null,null,null,null,null,4.3499999999999996,1235.6300000000001,0,0]
["11373",288,284,"Aquilegia caerulea Crimson Star","semenáč",null,1,"Y",null,null,null,null,null,null,null,null,null,null,null,null,4.99,1415.96,0,0]
["36123",288,284,"Aquilegia caerulea Earlybird™ Purple Blue","semenáč",null,1,"Y",null,null,null,null,null,null,null,null,null,null,null,null,8.06,2290.4299999999998,0,0]
["36124",288,284,"Aquilegia caerulea Earlybird™ Purple White","semenáč",null,1,"Y",null,null,null,null,null,null,null,null,null,null,null,null,8.06,2290.4299999999998,0,0]
["36126",288,284,"Aquilegia caerulea Earlybird™ Red White","semenáč",null,1,"Y",null,null,null,null,null,null,null,null,null,null,null,null,8.06,2290.4299999999998,0,0]
["36127",288,284,"Aquilegia caerulea Earlybird™ Red Yellow","semenáč",null,1,"Y",null,null,null,null,null,null,null,null,null,null,null,null,8.06,2290.4299999999998,0,0]
["36128",288,284,"Aquilegia caerulea Earlybird™ White","semenáč",null,1,"Y",null,null,null,null,null,null,null,null,null,null,null,null,8.06,2290.4299999999998,0,0]
["36129",288,284,"Aquilegia caerulea Earlybird™ Yellow","semenáč",null,1,"Y",null,null,null,null,null,null,null,null,null,null,null,null,8.06,2290.4299999999998,0,0]
["14065",288,284,"Aquilegia caerulea Spring Magic® F1 Blue & White","semenáč",null,1,"Y",null,null,null,null,null,null,null,null,null,null,null,null,6.56,1862.43,{"$f":"V77*(J77+K77+L77+M77+N77+O77+P77+Q77+R77+S77+T77)","v":0},{"$f":"W77*1.12","v":0}]
["14438",288,284,"Aquilegia caerulea Spring Magic® F1 Mix","semenáč",null,1,"Y",null,null,null,null,null,null,null,null,null,null,null,null,6.56,1862.43,0,0]
["19440",288,284,"Aquilegia caerulea Spring Magic® F1 Navy & White","semenáč",null,1,"Y",null,null,null,null,null,null,null,null,null,null,null,null,6.56,1862.43,0,0]
["14066",288,284,"Aquilegia caerulea Spring Magic® F1 Rose & White","semenáč",null,1,"Y",null,null,null,null,null,null,null,null,null,null,null,null,6.56,1862.43,0,0]
["14067",288,284,"Aquilegia caerulea Spring Magic® F1 White","semenáč",null,1,"Y",null,null,null,null,null,null,null,null,null,null,null,null,6.56,1862.43,0,0]
["17218",288,284,"Aquilegia caerulea Spring Magic® F1 Yellow","semenáč",null,1,"Y",null,null,null,null,null,null,null,null,null,null,null,null,6.56,1862.43,0,0]
["11386",288,284,"Aquilegia flabellata Cameo Mix","semenáč",null,1,"N",null,null,null,null,null,null,null,null,null,null,null,null,6.74,1914.57,0,0]
["12981",288,284,"Aquilegia vulgaris Winky Double Red & White","semenáč",null,1,"N",null,null,null,null,null,null,null,null,null,null,null,null,7.01,1990.61,0,0]
["11402",288,284,"Arabis blepharophylla Barranca Deep Rose","semenáč",null,2,"N",null,null,null,null,null,null,null,null,null,null,null,null,3.71,1054.22,0,0]
["30349",288,284,"Arabis caucasica Aubris Deep Rose","semenáč",null,2,"N",null,null,null,null,null,null,null,null,null,null,null,null,4.59,1302.98,0,0]
["30350",288,284,"Arabis caucasica Aubris White","semenáč",null,2,"N",null,null,null,null,null,null,null,null,null,null,null,null,4.59,1302.98,0,0]
["12718",180,178,"Arabis ferdinandi-coburgii Old Gold","řízek",null,1,"N",null,null,null,null,null,null,null,null,null,null,null,null,9.57,1702.98,0,0]
["30070",288,284,"Arenaria montana Ronda White","semenáč",null,2,"Y",null,null,null,null,null,null,null,null,null,null,null,null,5.54,1573.47,0,0]
["30268",288,284,"Armeria maritima Abbey Deep Rose","semenáč",null,2,"N",null,null,null,null,null,null,null,null,null,null,null,null,4.4800000000000004,1273.6500000000001,0,0]
["30271",288,284,"Armeria maritima Abbey White","semenáč",null,2,"N",null,null,null,null,null,null,null,null,null,null,null,null,4.4800000000000004,1273.6500000000001,0,0]
["17162",288,284,"Armeria pseudarmeria Ballerina Purple Rose","semenáč",null,2,"N",null,null,null,null,null,null,null,null,null,null,null,null,6.89,1955.85,0,0]
["16550",288,284,"Armeria pseudarmeria Ballerina Red","semenáč",null,2,"N",null,null,null,null,null,null,null,null,null,null,null,null,6.89,1955.85,0,0]
["16551",288,284,"Armeria pseudarmeria Ballerina White","semenáč",null,2,"N",null,null,null,null,null,null,null,null,null,null,null,null,6.89,1955.85,0,0]
["15005",128,126,"Artemisia schmidtiana Nana","řízek",null,1,"N",null,null,null,null,null,null,null,null,null,null,null,null,9.68,1219.81,0,0]
["12721",128,126,"Artemisia schmidtiana Nana Attraction","řízek",null,1,"N",null,null,null,null,null,null,null,null,null,null,null,null,9.68,1219.81,0,0]
["44443",84,84,"Asparagus densiflorus FuzzyFern™ Frizz","semenáč","new",2,"N",null,null,null,null,null,null,null,null,null,null,null,null,13.91,1168.72,0,0]
["44443",180,178,"Asparagus densiflorus FuzzyFern™ Frizz","semenáč","new",2,"N",null,null,null,null,null,null,null,null,null,null,null,null,7.41,1318.98,0,0]
["11424",288,284,"Aster alpinus Happy End","semenáč",null,1,"N",null,null,null,null,null,null,null,null,null,null,null,null,4.6100000000000003,1310.58,0,0]
["11421",288,284,"Aster alpinus Violet","semenáč",null,1,"N",null,null,null,null,null,null,null,null,null,null,null,null,4.6100000000000003,1310.58,0,0]
["11422",288,284,"Aster alpinus White","semenáč",null,1,"N",null,null,null,null,null,null,null,null,null,null,null,null,4.6100000000000003,1310.58,0,0]
["15860",180,178,"Astilbe arendsii Astary® Rose Red Shades","semenáč",null,1,"N",null,null,null,null,null,null,null,null,null,null,null,null,9.59,1707.74,0,0]
["15859",180,178,"Astilbe arendsii Astary® White","semenáč",null,1,"N",null,null,null,null,null,null,null,null,null,null,null,null,9.59,1707.74,0,0]
["11434",288,284,"Astilbe chinensis Pumila","semenáč",null,2,"N",null,null,null,null,null,null,null,null,null,null,null,null,4.8600000000000003,1381.19,0,0]
["11436",288,284,"Aubrieta deltoidea Cascade Blue","semenáč",null,2,"N",null,null,null,null,null,null,null,null,null,null,null,null,4.13,1171.54,0,0]
["11437",288,284,"Aubrieta deltoidea Cascade Purple","semenáč",null,2,"N",null,null,null,null,null,null,null,null,null,null,null,null,4.13,1171.54,0,0]
["11438",288,284,"Aubrieta deltoidea Cascade Red","semenáč",null,2,"N",null,null,null,null,null,null,null,null,null,null,null,null,4.13,1171.54,0,0]
["31014",288,284,"Aubrieta gracilis Audrey™ F1 Deep Blue","semenáč",null,2,"N",null,null,null,null,null,null,null,null,null,null,null,null,5.51,1564.78,0,0]
["31016",288,284,"Aubrieta gracilis Audrey™ F1 Mid Blue","semenáč",null,2,"N",null,null,null,null,null,null,null,null,null,null,null,null,5.51,1564.78,0,0]
["31015",288,284,"Aubrieta gracilis Audrey™ F1 Red","semenáč",null,2,"N",null,null,null,null,null,null,null,null,null,null,null,null,5.51,1564.78,0,0]
["14163",180,178,"Aubrieta gracilis Dr. Mules Variegated","řízek",null,1,"N",null,null,null,null,null,null,null,null,null,null,null,null,8.58,1526.64,0,0]
["31632",180,178,"Aubrieta gracilis Florado Blue Blush Bicolour","řízek",null,1,"N","A",null,null,null,null,null,null,null,null,null,null,null,8.25,1468.76,0,0]
["32513",180,178,"Aubrieta gracilis Florado Blue Eye","řízek",null,1,"N","A",null,null,null,null,null,null,null,null,null,null,null,8.25,1468.76,0,0]
["37034",180,178,"Aubrieta gracilis Florado Neon Pink","řízek",null,1,"N","A",null,null,null,null,null,null,null,null,null,null,null,8.25,1468.76,0,0]
["15353",180,178,"Aubrieta gracilis Florado Rose Red","řízek",null,1,"N","A",null,null,null,null,null,null,null,null,null,null,null,8.25,1468.76,0,0]
["34055",180,178,"Aubrieta gracilis Florado White","řízek",null,1,"N","A",null,null,null,null,null,null,null,null,null,null,null,8.25,1468.76,0,0]
["12723",180,178,"Aubrieta gracilis Hamburger Stadtpark","řízek",null,1,"N",null,null,null,null,null,null,null,null,null,null,null,null,6.91,1230.47,0,0]
["13852",180,178,"Aubrieta gracilis Kitte® Blue","řízek",null,1,"N",null,null,null,null,null,null,null,null,null,null,null,null,6.91,1230.47,0,0]
["32521",180,178,"Aubrieta gracilis Regado Blue White Bicolour","řízek",null,1,"N","A",null,null,null,null,null,null,null,null,null,null,null,8.25,1468.76,0,0]
["20656",180,178,"Aubrieta gracilis Regado Red","řízek",null,1,"N","A",null,null,null,null,null,null,null,null,null,null,null,8.25,1468.76,0,0]
["30320",180,178,"Aubrieta gracilis Regado White","řízek",null,1,"N","A",null,null,null,null,null,null,null,null,null,null,null,8.25,1468.76,0,0]
["36803",288,284,"Aurinia saxatilis Gold Cushion Impr.","semenáč",null,2,"N",null,null,null,null,null,null,null,null,null,null,null,null,4.28,1214.99,0,0]
["11472",288,284,"Bergenia cordifolia Rose","semenáč",null,2,"N",null,null,null,null,null,null,null,null,null,null,null,null,4.99,1417.04,0,0]
["11471",288,284,"Bergenia cordifolia Rotblum","semenáč",null,2,"N",null,null,null,null,null,null,null,null,null,null,null,null,4.99,1417.04,0,0]
["11270",288,284,"Bouteloua gracilis","semenáč",null,3,"N",null,null,null,null,null,null,null,null,null,null,null,null,3.93,1116.1400000000001,0,0]
["42139",84,84,"Brunnera macrophylla Mega Heart","řízek",null,1,"N","A",null,null,null,null,null,null,null,null,null,null,null,40.98,3442.24,0,0]
["37853",84,84,"Buddleia davidii Chrysalis™ Blue","řízek","new",1,"Y","A",null,null,null,null,null,null,null,null,null,null,null,23.67,1988.04,0,0]
["37856",84,84,"Buddleia davidii Chrysalis™ Pink","řízek","new",1,"Y","A",null,null,null,null,null,null,null,null,null,null,null,23.67,1988.04,0,0]
["37854",84,84,"Buddleia davidii Chrysalis™ White","řízek","new",1,"Y","A",null,null,null,null,null,null,null,null,null,null,null,23.67,1988.04,0,0]
["42927",84,84,"Buddleia davidii Little Rockstars Blue","řízek","new",1,"Y","A",null,null,null,null,null,null,null,null,null,null,null,22.71,1907.71,0,0]
["42926",84,84,"Buddleia davidii Little Rockstars Pink","řízek","new",1,"Y","A",null,null,null,null,null,null,null,null,null,null,null,22.71,1907.71,0,0]
["42924",84,84,"Buddleia davidii Little Rockstars Red","řízek","new",1,"Y","A",null,null,null,null,null,null,null,null,null,null,null,22.71,1907.71,0,0]
["42928",84,84,"Buddleia davidii Little Rockstars White","řízek","new",1,"Y","A",null,null,null,null,null,null,null,null,null,null,null,22.71,1907.71,0,0]
["37943",180,178,"Bulbine frutescens Avera Sunset Orange","semenáč",null,1,"N",null,null,null,null,null,null,null,null,null,null,null,null,9.06,1612.42,0,0]
["37944",180,178,"Bulbine frutescens Avera Sunset Yellow","semenáč",null,1,"N",null,null,null,null,null,null,null,null,null,null,null,null,9.06,1612.42,0,0]
["11473",288,284,"Buphthalmum salicifolium Golden Yellow","semenáč",null,2,"N",null,null,null,null,null,null,null,null,null,null,null,null,4.09,1162.8499999999999,0,0]
["33090",288,284,"Calamintha nepeta Marvelette Blue","semenáč",null,2,"N",null,null,null,null,null,null,null,null,null,null,null,null,6,1703.83,0,0]
["33119",288,284,"Calamintha nepeta Marvelette White","semenáč",null,2,"N",null,null,null,null,null,null,null,null,null,null,null,null,6,1703.83,0,0]
["12727",180,178,"Calamintha nepeta ssp. nepeta","řízek",null,1,"Y",null,null,null,null,null,null,null,null,null,null,null,null,7.6,1353.02,0,0]
["11491",288,284,"Campanula carpatica Carillon Blue","semenáč",null,4,"N",null,null,null,null,null,null,null,null,null,null,null,null,5.07,1439.85,0,0]
["11492",288,284,"Campanula carpatica Carillon White","semenáč",null,4,"N",null,null,null,null,null,null,null,null,null,null,null,null,5.07,1439.85,{"$f":"V141*(J141+K141+L141+M141+N141+O141+P141+Q141+R141+S141+T141)","v":0},{"$f":"W141*1.12","v":0}]
["20731",288,284,"Campanula carpatica Perla Blue","semenáč",null,2,"N",null,null,null,null,null,null,null,null,null,null,null,null,6.02,1709.26,0,0]
["30073",288,284,"Campanula carpatica Perla White","semenáč",null,2,"N",null,null,null,null,null,null,null,null,null,null,null,null,6.02,1709.26,0,0]
["20113",288,284,"Campanula cochleariifolia Jingle Blue","semenáč",null,4,"N",null,null,null,null,null,null,null,null,null,null,null,null,5.18,1471.36,0,0]
["20114",288,284,"Campanula cochleariifolia Jingle White","semenáč",null,4,"N",null,null,null,null,null,null,null,null,null,null,null,null,5.18,1471.36,0,0]
["11499",288,284,"Campanula garganica Major","semenáč",null,2,"N",null,null,null,null,null,null,null,null,null,null,null,null,6.44,1828.75,0,0]
["11500",288,284,"Campanula glomerata Acaulis Blue","semenáč",null,2,"N",null,null,null,null,null,null,null,null,null,null,null,null,4.38,1243.23,0,0]
["11501",288,284,"Campanula glomerata Alba","semenáč",null,2,"N",null,null,null,null,null,null,null,null,null,null,null,null,4.38,1243.23,0,0]
["11502",288,284,"Campanula glomerata Superba","semenáč",null,2,"N",null,null,null,null,null,null,null,null,null,null,null,null,4.38,1243.23,0,0]
["11508",288,284,"Campanula persicifolia Caerulea","semenáč",null,2,"N",null,null,null,null,null,null,null,null,null,null,null,null,4.18,1186.75,0,0]
["18502",288,284,"Campanula persicifolia Takion™ F1 Blue","semenáč",null,1,"N",null,null,null,null,null,null,null,null,null,null,null,null,6.61,1877.63,0,0]
["18503",288,284,"Campanula persicifolia Takion™ F1 White","semenáč",null,1,"N",null,null,null,null,null,null,null,null,null,null,null,null,6.61,1877.63,0,0]
["11507",288,284,"Campanula persicifolia White","semenáč",null,2,"N",null,null,null,null,null,null,null,null,null,null,null,null,4.18,1186.75,0,0]
["14941",128,126,"Campanula portenschlagiana Catharina","řízek",null,1,"N",null,null,null,null,null,null,null,null,null,null,null,null,13.06,1645.37,0,0]
["14941",180,178,"Campanula portenschlagiana Catharina","řízek",null,1,"N",null,null,null,null,null,null,null,null,null,null,null,null,10.68,1900.42,0,0]
["31833",288,284,"Campanula portenschlagiana Clockwise Deep Blue","semenáč",null,1,"N",null,null,null,null,null,null,null,null,null,null,null,null,6.77,1922.17,0,0]
["36441",288,284,"Campanula portenschlagiana Dome Blue","semenáč",null,2,"N",null,null,null,null,null,null,null,null,null,null,null,null,5.64,1600.63,0,0]
["37533",128,126,"Campanula portenschlagiana Zenn White","řízek",null,1,"N","A",null,null,null,null,null,null,null,null,null,null,null,15.35,1933.58,0,0]
["35824",288,284,"Campanula poscharskyana Lagoon Blue","semenáč",null,2,"N",null,null,null,null,null,null,null,null,null,null,null,null,5.47,1552.83,0,0]
["14908",288,284,"Carex albula Amazon Mist™","semenáč",null,3,"N",null,null,null,null,null,null,null,null,null,null,null,null,5.0599999999999996,1437.68,0,0]
["11277",288,284,"Carex buchananii Red Rooster™","semenáč",null,3,"N",null,null,null,null,null,null,null,null,null,null,null,null,5.0599999999999996,1437.68,0,0]
["13885",288,284,"Carex comans Bronco™","semenáč",null,3,"N",null,null,null,null,null,null,null,null,null,null,null,null,5.0599999999999996,1437.68,0,0]
["17184",288,284,"Carex howardii Phoenix Green™","semenáč",null,3,"N",null,null,null,null,null,null,null,null,null,null,null,null,6.05,1717.95,0,0]
["11278",288,284,"Carex pendula","semenáč",null,3,"N",null,null,null,null,null,null,null,null,null,null,null,null,5.18,1471.36,0,0]
["15578",288,284,"Carex testacea Prairie Fire","semenáč",null,3,"N",null,null,null,null,null,null,null,null,null,null,null,null,6.05,1717.95,0,0]
["37739",128,126,"Caryopteris clandonensis Emerald Crest","řízek",null,1,"Y","A",null,null,null,null,null,null,null,null,null,null,null,17.89,2254.56,0,0]
["37031",128,126,"Caryopteris clandonensis Gold Crest","řízek",null,1,"Y","A",null,null,null,null,null,null,null,null,null,null,null,17.89,2254.56,0,0]
["11518",288,284,"Catananche caerulea Blue","semenáč",null,2,"N",null,null,null,null,null,null,null,null,null,null,null,null,4.42,1254.0999999999999,0,0]
["11520",288,284,"Centaurea dealbata Bright Rose","semenáč",null,1,"N",null,null,null,null,null,null,null,null,null,null,null,null,4.2699999999999996,1212.82,0,0]
["11521",288,284,"Centaurea macrocephala Deep Yellow","semenáč",null,1,"N",null,null,null,null,null,null,null,null,null,null,null,null,4.91,1394.23,0,0]
["11522",288,284,"Centaurea montana","semenáč",null,1,"N",null,null,null,null,null,null,null,null,null,null,null,null,5.04,1432.25,0,0]
["11524",288,284,"Centranthus ruber Albus","semenáč",null,2,"N",null,null,null,null,null,null,null,null,null,null,null,null,4.5,1276.9100000000001,0,0]
["11525",288,284,"Centranthus ruber Coccineus","semenáč",null,2,"N",null,null,null,null,null,null,null,null,null,null,null,null,4.5,1276.9100000000001,0,0]
["11526",288,284,"Cerastium tomentosum Silver White","semenáč",null,2,"Y",null,null,null,null,null,null,null,null,null,null,null,null,4.08,1158.5,0,0]
["12729",128,126,"Ceratostigma plumbaginoides Gentian Blue","řízek",null,1,"Y",null,null,null,null,null,null,null,null,null,null,null,null,9.59,1207.76,0,0]
["33092",84,84,"Coreopsis grandiflora Double the Sun","semenáč",null,3,"N",null,null,null,null,null,null,null,null,null,null,null,null,14.77,1240.3699999999999,0,0]
["33092",288,284,"Coreopsis grandiflora Double the Sun","semenáč",null,1,"N",null,null,null,null,null,null,null,null,null,null,null,null,5.21,1478.96,0,0]
["19800",84,84,"Coreopsis grandiflora Early Sunrise Yellow Double","semenáč",null,4,"N",null,null,null,null,null,null,null,null,null,null,null,null,11.87,996.83,0,0]
["19801",288,284,"Coreopsis grandiflora Presto® Yellow Double","semenáč",null,1,"N",null,null,null,null,null,null,null,null,null,null,null,null,5.81,1650.6,0,0]
["36643",128,126,"Coreopsis grandiflora Solanna™ Bright Touch","řízek",null,1,"Y","A",null,null,null,null,null,null,null,null,null,null,null,17.329999999999998,2183.23,0,0]
["32754",128,126,"Coreopsis grandiflora Solanna™ Golden Sphere","řízek",null,1,"N","A",null,null,null,null,null,null,null,null,null,null,null,17.329999999999998,2183.23,0,0]
["36642",128,126,"Coreopsis grandiflora Solanna™ Sunset Burst","řízek",null,1,"Y","A",null,null,null,null,null,null,null,null,null,null,null,17.329999999999998,2183.23,0,0]
["19803",84,84,"Coreopsis grandiflora Sunfire Yellow Red","semenáč",null,3,"N",null,null,null,null,null,null,null,null,null,null,null,null,13.1,1100.29,0,0]
["19803",288,284,"Coreopsis grandiflora Sunfire Yellow Red","semenáč",null,1,"N",null,null,null,null,null,null,null,null,null,null,null,null,3.91,1110.71,0,0]
["33095",84,84,"Coreopsis grandiflora SunKiss Yellow Red","semenáč",null,3,"N",null,null,null,null,null,null,null,null,null,null,null,null,14.3,1200.8499999999999,0,0]
["33095",288,284,"Coreopsis grandiflora SunKiss Yellow Red","semenáč",null,1,"N",null,null,null,null,null,null,null,null,null,null,null,null,5.36,1522.41,0,0]
["35558",128,126,"Coreopsis grandiflora UpTick™ Cream","řízek",null,1,"Y","A",null,null,null,null,null,null,null,null,null,null,null,17.899999999999999,2255.52,0,0]
["35560",128,126,"Coreopsis grandiflora UpTick™ Gold & Bronze","řízek",null,1,"Y","A",null,null,null,null,null,null,null,null,null,null,null,17.899999999999999,2255.52,0,0]
["37827",128,126,"Coreopsis grandiflora UpTick™ Red","řízek",null,1,"Y","A",null,null,null,null,null,null,null,null,null,null,null,17.899999999999999,2255.52,0,0]
["35561",128,126,"Coreopsis grandiflora UpTick™ Yellow & Red","řízek",null,1,"Y","A",null,null,null,null,null,null,null,null,null,null,null,17.899999999999999,2255.52,0,0]
["11564",288,284,"Coreopsis lanceolata Sterntaler","semenáč",null,2,"N",null,null,null,null,null,null,null,null,null,null,null,null,4.08,1159.5899999999999,0,0]
["12927",180,178,"Coreopsis verticillata Zagreb","řízek",null,1,"Y",null,null,null,null,null,null,null,null,null,null,null,null,9.07,1613.78,0,0]
["11281",288,284,"Cortaderia selloana Rose Plume","semenáč",null,2,"N",null,null,null,null,null,null,null,null,null,null,null,null,3.93,1115.05,0,0]
["11280",288,284,"Cortaderia selloana White Plume","semenáč",null,2,"N",null,null,null,null,null,null,null,null,null,null,null,null,3.93,1115.05,0,0]
["42857",128,126,"Cosmos atrosanguineus Cherry Chocolate","řízek","new",1,"Y","A",null,null,null,null,null,null,null,null,null,null,null,16.399999999999999,2066.11,0,0]
["30434",288,284,"Delosperma congestum Yellow","semenáč",null,1,"N",null,null,null,null,null,null,null,null,null,null,null,null,5.53,1569.12,0,0]
["37735",180,178,"Delosperma cooperi Delmara™ Fuchsia","řízek",null,1,"Y","A",null,null,null,null,null,null,null,null,null,null,null,12.83,2283.06,0,0]
["37736",180,178,"Delosperma cooperi Delmara™ Orange","řízek",null,1,"Y","A",null,null,null,null,null,null,null,null,null,null,null,12.83,2283.06,0,0]
["37737",180,178,"Delosperma cooperi Delmara™ Pink","řízek",null,1,"Y","A",null,null,null,null,null,null,null,null,null,null,null,12.83,2283.06,0,0]
["37738",180,178,"Delosperma cooperi Delmara™ Red","řízek",null,1,"Y","A",null,null,null,null,null,null,null,null,null,null,null,12.83,2283.06,0,0]
["35679",180,178,"Delosperma cooperi Ice Cream™ Fire","řízek",null,1,"N","A",null,null,null,null,null,null,null,null,null,null,null,12.06,2146.89,0,0]
["41619",180,178,"Delosperma cooperi Ice Cream™ Fuchsia","řízek",null,1,"N","A",null,null,null,null,null,null,null,null,null,null,null,12.06,2146.89,0,0]
["37256",84,82,"Delosperma cooperi Ice Cream™ MixMasters® Swirl","řízek",null,3,"N","A",null,null,null,null,null,null,null,null,null,null,null,28.51,2338.13,0,0]
["44196",84,82,"Delosperma cooperi Ice Cream™ MixMasters® Twist","řízek","new",3,"N","A",null,null,null,null,null,null,null,null,null,null,null,28.51,2338.13,0,0]
["35678",180,178,"Delosperma cooperi Ice Cream™ Orange","řízek",null,1,"N","A",null,null,null,null,null,null,null,null,null,null,null,12.06,2146.89,{"$f":"V205*(J205+K205+L205+M205+N205+O205+P205+Q205+R205+S205+T205)","v":0},{"$f":"W205*1.12","v":0}]
["41622",180,178,"Delosperma cooperi Ice Cream™ Purple","řízek",null,1,"N","A",null,null,null,null,null,null,null,null,null,null,null,12.06,2146.89,0,0]
["35681",180,178,"Delosperma cooperi Ice Cream™ Salmon","řízek",null,1,"N","A",null,null,null,null,null,null,null,null,null,null,null,12.06,2146.89,0,0]
["35682",180,178,"Delosperma cooperi Ice Cream™ Yellow","řízek",null,1,"N","A",null,null,null,null,null,null,null,null,null,null,null,12.06,2146.89,0,0]
["41787",128,126,"Delosperma cooperi Ocean Sunset™ Orange Glow","řízek",null,1,"Y","A",null,null,null,null,null,null,null,null,null,null,null,18.88,2379.38,0,0]
["42921",128,126,"Delosperma cooperi Ocean Sunset™ Orange Red","řízek","new",1,"Y","A",null,null,null,null,null,null,null,null,null,null,null,18.88,2379.38,0,0]
["41786",128,126,"Delosperma cooperi Ocean Sunset™ Orange Vibe","řízek",null,1,"Y","A",null,null,null,null,null,null,null,null,null,null,null,18.88,2379.38,0,0]
["42919",128,126,"Delosperma cooperi Ocean Sunset™ Purple Flare","řízek","new",1,"Y","A",null,null,null,null,null,null,null,null,null,null,null,18.88,2379.38,0,0]
["41785",128,126,"Delosperma cooperi Ocean Sunset™ Violet","řízek",null,1,"Y","A",null,null,null,null,null,null,null,null,null,null,null,18.88,2379.38,0,0]
["15694",288,284,"Delosperma cooperi Table Mountain","semenáč",null,1,"N",null,null,null,null,null,null,null,null,null,null,null,null,5.53,1569.12,0,0]
["17286",288,284,"Delosperma sutherlandii","semenáč",null,1,"N",null,null,null,null,null,null,null,null,null,null,null,null,5.93,1683.19,0,0]
["17417",288,284,"Delphinium cultorum Delphinity F1 Blue","semenáč",null,1,"Y",null,null,null,null,null,null,null,null,null,null,null,null,6.26,1778.78,0,0]
["31221",84,84,"Delphinium cultorum Dignity® Blue Shades","semenáč",null,2,"Y",null,null,null,null,null,null,null,null,null,null,null,null,8.26,693.52,0,0]
["31221",180,178,"Delphinium cultorum Dignity® Blue Shades","semenáč",null,2,"Y",null,null,null,null,null,null,null,null,null,null,null,null,6.28,1118.1300000000001,0,0]
["31221",288,284,"Delphinium cultorum Dignity® Blue Shades","semenáč",null,2,"Y",null,null,null,null,null,null,null,null,null,null,null,null,4.57,1297.55,0,0]
["11594",84,84,"Delphinium cultorum Magic Fountain Dark Blue Black Bee","semenáč",null,3,"Y",null,null,null,null,null,null,null,null,null,null,null,null,10.72,900.12,0,0]
["11594",288,284,"Delphinium cultorum Magic Fountain Dark Blue Black Bee","semenáč",null,2,"Y",null,null,null,null,null,null,null,null,null,null,null,null,3.89,1105.27,0,0]
["11595",84,84,"Delphinium cultorum Magic Fountain Dark Blue White Bee","semenáč",null,3,"Y",null,null,null,null,null,null,null,null,null,null,null,null,10.72,900.12,0,0]
["11595",180,178,"Delphinium cultorum Magic Fountain Dark Blue White Bee","semenáč",null,3,"Y",null,null,null,null,null,null,null,null,null,null,null,null,6.19,1101.0999999999999,0,0]
["11595",288,284,"Delphinium cultorum Magic Fountain Dark Blue White Bee","semenáč",null,2,"Y",null,null,null,null,null,null,null,null,null,null,null,null,3.89,1105.27,0,0]
["11597",84,84,"Delphinium cultorum Magic Fountain Deep Rose White Bee","semenáč",null,3,"Y",null,null,null,null,null,null,null,null,null,null,null,null,10.72,900.12,0,0]
["11597",288,284,"Delphinium cultorum Magic Fountain Deep Rose White Bee","semenáč",null,2,"Y",null,null,null,null,null,null,null,null,null,null,null,null,3.89,1105.27,0,0]
["11602",288,284,"Delphinium cultorum Magic Fountain Mix","semenáč",null,2,"Y",null,null,null,null,null,null,null,null,null,null,null,null,3.89,1105.27,0,0]
["11599",84,84,"Delphinium cultorum Magic Fountain Sky Blue White Bee","semenáč",null,3,"Y",null,null,null,null,null,null,null,null,null,null,null,null,10.72,900.12,0,0]
["11599",288,284,"Delphinium cultorum Magic Fountain Sky Blue White Bee","semenáč",null,2,"Y",null,null,null,null,null,null,null,null,null,null,null,null,3.89,1105.27,0,0]
["11598",84,84,"Delphinium cultorum Magic Fountain White","semenáč",null,3,"Y",null,null,null,null,null,null,null,null,null,null,null,null,10.72,900.12,0,0]
["11598",288,284,"Delphinium cultorum Magic Fountain White","semenáč",null,2,"Y",null,null,null,null,null,null,null,null,null,null,null,null,3.89,1105.27,0,0]
["11601",288,284,"Delphinium cultorum Magic Fountain White Dark Bee","semenáč",null,2,"Y",null,null,null,null,null,null,null,null,null,null,null,null,3.89,1105.27,0,0]
["11581",288,284,"Delphinium cultorum Pacific Giants Astolat","semenáč",null,2,"Y",null,null,null,null,null,null,null,null,null,null,null,null,4.57,1297.55,0,0]
["11582",288,284,"Delphinium cultorum Pacific Giants Black Knight","semenáč",null,2,"Y",null,null,null,null,null,null,null,null,null,null,null,null,4.57,1297.55,0,0]
["11583",288,284,"Delphinium cultorum Pacific Giants Blue Bird","semenáč",null,2,"Y",null,null,null,null,null,null,null,null,null,null,null,null,4.57,1297.55,0,0]
["11586",288,284,"Delphinium cultorum Pacific Giants Galahad","semenáč",null,2,"Y",null,null,null,null,null,null,null,null,null,null,null,null,4.57,1297.55,0,0]
["11588",288,284,"Delphinium cultorum Pacific Giants King Arthur","semenáč",null,2,"Y",null,null,null,null,null,null,null,null,null,null,null,null,4.57,1297.55,0,0]
["38304",288,284,"Delphinium grandiflorum Ocean Cheer Blue","semenáč",null,2,"N",null,null,null,null,null,null,null,null,null,null,null,null,5.67,1609.32,0,0]
["31856",288,284,"Delphinium grandiflorum Ocean Pink","semenáč",null,2,"N",null,null,null,null,null,null,null,null,null,null,null,null,5.67,1609.32,0,0]
["30181",288,284,"Delphinium grandiflorum Ocean Tiara Blue","semenáč",null,2,"N",null,null,null,null,null,null,null,null,null,null,null,null,5.67,1609.32,0,0]
["30180",288,284,"Delphinium grandiflorum Ocean White","semenáč",null,2,"N",null,null,null,null,null,null,null,null,null,null,null,null,5.67,1609.32,0,0]
["11283",288,284,"Deschampsia cespitosa","semenáč",null,4,"N",null,null,null,null,null,null,null,null,null,null,null,null,3.89,1104.19,0,0]
["35252",180,178,"Dianthus caryophyllus Code® Bicolour","řízek",null,1,"N","A",null,null,null,null,null,null,null,null,null,null,null,9.3800000000000008,1669.61,0,0]
["36740",180,178,"Dianthus caryophyllus Code® Bright Red","řízek",null,1,"N","A",null,null,null,null,null,null,null,null,null,null,null,9.3800000000000008,1669.61,0,0]
["36743",180,178,"Dianthus caryophyllus Code® Pink","řízek",null,1,"N","A",null,null,null,null,null,null,null,null,null,null,null,9.3800000000000008,1669.61,0,0]
["35250",180,178,"Dianthus caryophyllus Code® Purple Dark Center","řízek",null,1,"N","A",null,null,null,null,null,null,null,null,null,null,null,9.3800000000000008,1669.61,0,0]
["35249",180,178,"Dianthus caryophyllus Code® Salmon","řízek",null,1,"N","A",null,null,null,null,null,null,null,null,null,null,null,9.3800000000000008,1669.61,0,0]
["35246",180,178,"Dianthus caryophyllus Code® White Summer","řízek",null,1,"N","A",null,null,null,null,null,null,null,null,null,null,null,9.3800000000000008,1669.61,0,0]
["37514",180,178,"Dianthus caryophyllus Code® White Winter","řízek",null,1,"N","A",null,null,null,null,null,null,null,null,null,null,null,9.3800000000000008,1669.61,0,0]
["31521",180,178,"Dianthus caryophyllus Dinetta Purple","řízek",null,1,"N","A",null,null,null,null,null,null,null,null,null,null,null,10.66,1897.7,0,0]
["31522",180,178,"Dianthus caryophyllus Dinetta Soft Pink","řízek",null,1,"N","A",null,null,null,null,null,null,null,null,null,null,null,10.66,1897.7,0,0]
["34975",180,178,"Dianthus caryophyllus Mountain Frost™ Collection Pink PomPom","řízek",null,1,"N","A",null,null,null,null,null,null,null,null,null,null,null,10.77,1916.76,0,0]
["34976",180,178,"Dianthus caryophyllus Mountain Frost™ Collection Pink Twinkle","řízek",null,1,"N","A",null,null,null,null,null,null,null,null,null,null,null,10.77,1916.76,0,0]
["34977",180,178,"Dianthus caryophyllus Mountain Frost™ Collection Rose Bouquet","řízek",null,1,"N","A",null,null,null,null,null,null,null,null,null,null,null,10.77,1916.76,0,0]
["11632",288,284,"Dianthus deltoides Brilliant","semenáč",null,2,"N",null,null,null,null,null,null,null,null,null,null,null,null,3.71,1054.22,0,0]
["11637",288,284,"Dianthus deltoides Leuchtfunk","semenáč",null,2,"N",null,null,null,null,null,null,null,null,null,null,null,null,3.71,1054.22,0,0]
["11636",288,284,"Dianthus deltoides White","semenáč",null,2,"N",null,null,null,null,null,null,null,null,null,null,null,null,3.71,1054.22,0,0]
["11639",288,284,"Dianthus plumarius Double Rose","semenáč",null,2,"N",null,null,null,null,null,null,null,null,null,null,null,null,4.33,1229.1099999999999,0,0]
["18520",288,284,"Dianthus x barbatus Barbarini® F1 Formular Mix","semenáč",null,1,"N",null,null,null,null,null,null,null,null,null,null,null,null,4.97,1411.61,0,0]
["18511",288,284,"Dianthus x barbatus Barbarini® F1 Purple","semenáč",null,1,"N",null,null,null,null,null,null,null,null,null,null,null,null,4.97,1411.61,0,0]
["18513",288,284,"Dianthus x barbatus Barbarini® F1 Purple Picotee","semenáč",null,1,"N",null,null,null,null,null,null,null,null,null,null,null,null,4.97,1411.61,0,0]
["18514",288,284,"Dianthus x barbatus Barbarini® F1 Red","semenáč",null,1,"N",null,null,null,null,null,null,null,null,null,null,null,null,4.97,1411.61,0,0]
["18515",288,284,"Dianthus x barbatus Barbarini® F1 Red Picotee","semenáč",null,1,"N",null,null,null,null,null,null,null,null,null,null,null,null,4.97,1411.61,0,0]
["18517",288,284,"Dianthus x barbatus Barbarini® F1 Rose","semenáč",null,1,"N",null,null,null,null,null,null,null,null,null,null,null,null,4.97,1411.61,0,0]
["42120",288,284,"Dianthus x barbatus Dart Pink Magician","semenáč",null,1,"N",null,null,null,null,null,null,null,null,null,null,null,null,5.64,1600.63,0,0]
["42123",288,284,"Dianthus x barbatus Dart Purple","semenáč",null,1,"N",null,null,null,null,null,null,null,null,null,null,null,null,5.64,1600.63,0,0]
["42122",288,284,"Dianthus x barbatus Dart Red White Picotee","semenáč",null,1,"N",null,null,null,null,null,null,null,null,null,null,null,null,5.64,1600.63,0,0]
["45336",288,284,"Dianthus x barbatus Dart Scarlet Impr.","semenáč",null,1,"N",null,null,null,null,null,null,null,null,null,null,null,null,5.64,1600.63,0,0]
["42118",288,284,"Dianthus x barbatus Dart White","semenáč",null,1,"N",null,null,null,null,null,null,null,null,null,null,null,null,5.64,1600.63,{"$f":"V269*(J269+K269+L269+M269+N269+O269+P269+Q269+R269+S269+T269)","v":0},{"$f":"W269*1.12","v":0}]
["31193",288,284,"Dianthus x barbatus Dash F1 Crimson","semenáč",null,1,"N",null,null,null,null,null,null,null,null,null,null,null,null,5.79,1642.99,0,0]
["31128",288,284,"Dianthus x barbatus Dash F1 Magician","semenáč",null,1,"N",null,null,null,null,null,null,null,null,null,null,null,null,5.79,1642.99,0,0]
["20734",288,284,"Dianthus x barbatus Dash F1 Pink","semenáč",null,1,"N",null,null,null,null,null,null,null,null,null,null,null,null,5.79,1642.99,0,0]
["20735",288,284,"Dianthus x barbatus Dash F1 White","semenáč",null,1,"N",null,null,null,null,null,null,null,null,null,null,null,null,5.79,1642.99,0,0]
["11623",288,284,"Dianthus x barbatus Nana compacta Mix","semenáč",null,2,"N",null,null,null,null,null,null,null,null,null,null,null,null,4.24,1204.1300000000001,0,0]
["13765",288,284,"Digitalis grandiflora Dwarf Carillion","semenáč",null,1,"N",null,null,null,null,null,null,null,null,null,null,null,null,4.01,1137.8599999999999,0,0]
["11652",288,284,"Digitalis mertonensis Summer King","semenáč",null,1,"N",null,null,null,null,null,null,null,null,null,null,null,null,4.07,1156.33,0,0]
["11658",288,284,"Digitalis purpurea Alba","semenáč",null,1,"N",null,null,null,null,null,null,null,null,null,null,null,null,4.07,1156.33,0,0]
["36661",84,84,"Digitalis purpurea Arctic Fox Rose","řízek",null,1,"N","A",null,null,null,null,null,null,null,null,null,null,null,23.3,1957.51,0,0]
["20443",288,284,"Digitalis purpurea Dalmatian F1 Mix","semenáč",null,1,"N",null,null,null,null,null,null,null,null,null,null,null,null,4.97,1411.61,0,0]
["19763",84,84,"Digitalis purpurea Dalmatian F1 Peach","semenáč",null,2,"N",null,null,null,null,null,null,null,null,null,null,null,null,12.74,1070.08,0,0]
["19763",288,284,"Digitalis purpurea Dalmatian F1 Peach","semenáč",null,1,"N",null,null,null,null,null,null,null,null,null,null,null,null,4.97,1411.61,0,0]
["16099",84,84,"Digitalis purpurea Dalmatian F1 Purple","semenáč",null,2,"N",null,null,null,null,null,null,null,null,null,null,null,null,12.74,1070.08,0,0]
["16099",288,284,"Digitalis purpurea Dalmatian F1 Purple","semenáč",null,1,"N",null,null,null,null,null,null,null,null,null,null,null,null,4.97,1411.61,0,0]
["19764",288,284,"Digitalis purpurea Dalmatian F1 Rose","semenáč",null,1,"N",null,null,null,null,null,null,null,null,null,null,null,null,4.97,1411.61,0,0]
["16100",84,84,"Digitalis purpurea Dalmatian F1 White","semenáč",null,2,"N",null,null,null,null,null,null,null,null,null,null,null,null,12.74,1070.08,0,0]
["16100",288,284,"Digitalis purpurea Dalmatian F1 White","semenáč",null,1,"N",null,null,null,null,null,null,null,null,null,null,null,null,4.97,1411.61,0,0]
["11653",288,284,"Digitalis purpurea Excelsior Hybrids","semenáč",null,1,"N",null,null,null,null,null,null,null,null,null,null,null,null,4.05,1150.9000000000001,0,0]
["11654",288,284,"Digitalis purpurea Foxy Mix","semenáč",null,1,"N",null,null,null,null,null,null,null,null,null,null,null,null,4.05,1150.9000000000001,0,0]
["35619",180,178,"Digitalis purpurea Panther","semenáč",null,1,"N",null,null,null,null,null,null,null,null,null,null,null,null,10.83,1928.34,0,0]
["18284",288,284,"Doronicum orientale Leonardo™ Compact","semenáč",null,1,"N",null,null,null,null,null,null,null,null,null,null,null,null,5.12,1452.89,0,0]
["11663",288,284,"Doronicum orientale Little Leo","semenáč",null,1,"N",null,null,null,null,null,null,null,null,null,null,null,null,5,1420.3,0,0]
["19448",84,84,"Echinacea hybrida Cheyenne Spirit","semenáč",null,1,"N",null,null,null,null,null,null,null,null,null,null,null,null,18.78,1577.42,0,0]
["19448",288,284,"Echinacea hybrida Cheyenne Spirit","semenáč",null,1,"N",null,null,null,null,null,null,null,null,null,null,null,null,10.8,3067.13,0,0]
["11667",288,284,"Echinacea purpurea Bright Rose","semenáč",null,1,"N",null,null,null,null,null,null,null,null,null,null,null,null,4.53,1287.77,0,0]
["15112",288,284,"Echinacea purpurea Doubledecker","semenáč",null,1,"N",null,null,null,null,null,null,null,null,null,null,null,null,6.88,1954.76,0,0]
["35625",288,284,"Echinacea purpurea Green Twister","semenáč",null,1,"N",null,null,null,null,null,null,null,null,null,null,null,null,8.35,2371.9,0,0]
["37030",84,84,"Echinacea purpurea Lakota™ Orange","semenáč",null,1,"N",null,null,null,null,null,null,null,null,null,null,null,null,24.47,2055.5100000000002,0,0]
["37030",180,178,"Echinacea purpurea Lakota™ Orange","semenáč",null,1,"N",null,null,null,null,null,null,null,null,null,null,null,null,19.13,3405.78,0,0]
["35612",84,84,"Echinacea purpurea Lakota™ Red","semenáč",null,1,"N",null,null,null,null,null,null,null,null,null,null,null,null,24.47,2055.5100000000002,0,0]
["35612",180,178,"Echinacea purpurea Lakota™ Red","semenáč",null,1,"N",null,null,null,null,null,null,null,null,null,null,null,null,19.13,3405.78,0,0]
["37013",84,84,"Echinacea purpurea Lakota™ Rose","semenáč",null,1,"N",null,null,null,null,null,null,null,null,null,null,null,null,24.47,2055.5100000000002,0,0]
["37013",180,178,"Echinacea purpurea Lakota™ Rose","semenáč",null,1,"N",null,null,null,null,null,null,null,null,null,null,null,null,19.13,3405.78,0,0]
["37012",84,84,"Echinacea purpurea Lakota™ Yellow","semenáč",null,1,"N",null,null,null,null,null,null,null,null,null,null,null,null,24.47,2055.5100000000002,0,0]
["37012",180,178,"Echinacea purpurea Lakota™ Yellow","semenáč",null,1,"N",null,null,null,null,null,null,null,null,null,null,null,null,19.13,3405.78,0,0]
["11669",288,284,"Echinacea purpurea Magnus","semenáč",null,1,"N",null,null,null,null,null,null,null,null,null,null,null,null,4.3899999999999997,1247.58,0,0]
["18099",84,84,"Echinacea purpurea PowWow™ White","semenáč",null,1,"N",null,null,null,null,null,null,null,null,null,null,null,null,16.38,1376.28,0,0]
["18099",288,284,"Echinacea purpurea PowWow™ White","semenáč",null,1,"N",null,null,null,null,null,null,null,null,null,null,null,null,10.8,3067.13,0,0]
["18100",84,84,"Echinacea purpurea PowWow™ Wild Berry","semenáč",null,1,"N",null,null,null,null,null,null,null,null,null,null,null,null,16.38,1376.28,0,0]
["18100",288,284,"Echinacea purpurea PowWow™ Wild Berry","semenáč",null,1,"N",null,null,null,null,null,null,null,null,null,null,null,null,10.8,3067.13,0,0]
["34018",84,84,"Echinacea purpurea Sombrero® Adobe Orange","řízek",null,1,"N","A",null,null,null,null,null,null,null,null,null,null,null,39.619999999999997,3328.18,0,0]
["34020",84,84,"Echinacea purpurea Sombrero® Blanco","řízek",null,1,"N","A",null,null,null,null,null,null,null,null,null,null,null,39.619999999999997,3328.18,0,0]
["41879",84,84,"Echinacea purpurea Sombrero® Compact Hot Pink","řízek",null,1,"N","A",null,null,null,null,null,null,null,null,null,null,null,39.950000000000003,3355.49,0,0]
["41877",84,84,"Echinacea purpurea Sombrero® Compact Red","řízek",null,1,"N","A",null,null,null,null,null,null,null,null,null,null,null,39.950000000000003,3355.49,0,0]
["41878",84,84,"Echinacea purpurea Sombrero® Compact White","řízek",null,1,"N","A",null,null,null,null,null,null,null,null,null,null,null,39.950000000000003,3355.49,0,0]
["36514",84,84,"Echinacea purpurea Sombrero® Compact Yellow","řízek",null,1,"N","A",null,null,null,null,null,null,null,null,null,null,null,39.950000000000003,3355.49,0,0]
["20355",84,84,"Echinacea purpurea Sombrero® Double Cranberry","řízek",null,1,"N","A",null,null,null,null,null,null,null,null,null,null,null,47.44,3985.24,0,0]
["41862",84,84,"Echinacea purpurea Sombrero® Double Lime","řízek",null,1,"N","A",null,null,null,null,null,null,null,null,null,null,null,47.44,3985.24,0,0]
["43123",84,84,"Echinacea purpurea Sombrero® Double Pink","řízek",null,1,"N","A",null,null,null,null,null,null,null,null,null,null,null,47.44,3985.24,0,0]
["34819",84,84,"Echinacea purpurea Sombrero® Lemon Yellow","řízek",null,1,"N","A",null,null,null,null,null,null,null,null,null,null,null,39.619999999999997,3328.18,0,0]
["36997",84,84,"Echinacea purpurea Sombrero® Rose","řízek",null,1,"N","A",null,null,null,null,null,null,null,null,null,null,null,39.619999999999997,3328.18,0,0]
["34820",84,84,"Echinacea purpurea Sombrero® Sangrita","řízek",null,1,"N","A",null,null,null,null,null,null,null,null,null,null,null,39.619999999999997,3328.18,0,0]
["37122",84,84,"Echinacea purpurea Sombrero® Special White Purple","řízek",null,1,"N","A",null,null,null,null,null,null,null,null,null,null,null,42.24,3548.27,0,0]
["37882",84,84,"Echinacea purpurea Sombrero® Special Yellow Red","řízek",null,1,"N","A",null,null,null,null,null,null,null,null,null,null,null,42.24,3548.27,0,0]
["11670",288,284,"Echinacea purpurea White Swan","semenáč",null,1,"N",null,null,null,null,null,null,null,null,null,null,null,null,4.4400000000000004,1260.6199999999999,0,0]
["11671",288,284,"Echinops bannaticus Blue Globe","semenáč",null,1,"N",null,null,null,null,null,null,null,null,null,null,null,null,5.43,1540.88,0,0]
["11672",288,284,"Echinops ritro","semenáč",null,1,"N",null,null,null,null,null,null,null,null,null,null,null,null,4.82,1368.16,0,0]
["11678",288,284,"Erigeron speciosus Azure Beauty","semenáč",null,1,"N",null,null,null,null,null,null,null,null,null,null,null,null,4.22,1198.7,0,0]
["14466",180,178,"Erodium variabile Bishop`s Form","řízek",null,1,"N",null,null,null,null,null,null,null,null,null,null,null,null,8.44,1501.44,0,0]
["11688",288,284,"Eryngium planum","semenáč",null,2,"N",null,null,null,null,null,null,null,null,null,null,null,null,4.34,1232.3699999999999,0,0]
["15861",288,284,"Eryngium planum Hobbit Blue","semenáč",null,1,"N",null,null,null,null,null,null,null,null,null,null,null,null,6.9,1960.19,0,0]
["32683",288,284,"Erysimum hybridum Spring Feeling","semenáč",null,2,"N",null,null,null,null,null,null,null,null,null,null,null,null,5.3,1506.12,0,0]
["34959",128,126,"Erysimum linifolium Bowles Me Away","řízek",null,1,"N","A",null,null,null,null,null,null,null,null,null,null,null,12.25,1543.68,0,0]
["18808",128,126,"Erysimum linifolium Fragrant Sunshine","řízek",null,1,"N","A",null,null,null,null,null,null,null,null,null,null,null,13.04,1642.96,{"$f":"V333*(J333+K333+L333+M333+N333+O333+P333+Q333+R333+S333+T333)","v":0},{"$f":"W333*1.12","v":0}]
["34957",128,126,"Erysimum linifolium Cheers™ Florange","řízek",null,1,"N","A",null,null,null,null,null,null,null,null,null,null,null,12.25,1543.68,0,0]
["34958",128,126,"Erysimum linifolium Cheers™ Sun-Kissed Amethyst","řízek",null,1,"N","A",null,null,null,null,null,null,null,null,null,null,null,12.25,1543.68,0,0]
["18867",128,126,"Erysimum linifolium Red Jep","řízek",null,1,"N","A",null,null,null,null,null,null,null,null,null,null,null,11.49,1447.29,0,0]
["11696",288,284,"Erysimum suffruticosum Goldstaub","semenáč",null,2,"N",null,null,null,null,null,null,null,null,null,null,null,null,3.75,1066.17,0,0]
["42410",84,84,"Eucalyptus cinerea Silver Dollar","semenáč",null,3,"Y",null,null,null,null,null,null,null,null,null,null,null,null,19.559999999999999,1643.28,0,0]
["42410",180,178,"Eucalyptus cinerea Silver Dollar","semenáč",null,3,"N",null,null,null,null,null,null,null,null,null,null,null,null,15.21,2707.91,0,0]
["43349",84,84,"Eucalyptus citriodora Green","semenáč",null,3,"Y",null,null,null,null,null,null,null,null,null,null,null,null,19.559999999999999,1643.28,0,0]
["43351",84,84,"Eucalyptus parvula Small Leaved Gum (Oliva)","semenáč",null,3,"Y",null,null,null,null,null,null,null,null,null,null,null,null,19.559999999999999,1643.28,0,0]
["43377",84,84,"Eucalyptus pulverulenta Baby Blue (Bouquet)","semenáč",null,3,"Y",null,null,null,null,null,null,null,null,null,null,null,null,19.559999999999999,1643.28,0,0]
["43377",180,178,"Eucalyptus pulverulenta Baby Blue (Bouquet)","semenáč",null,3,"N",null,null,null,null,null,null,null,null,null,null,null,null,15.21,2707.91,0,0]
["43352",84,84,"Eucalyptus websteriana Heart","semenáč",null,3,"Y",null,null,null,null,null,null,null,null,null,null,null,null,19.559999999999999,1643.28,0,0]
["31961",84,84,"Eupatorium purpureum Ruby","řízek",null,1,"Y","A",null,null,null,null,null,null,null,null,null,null,null,16.75,1406.81,0,0]
["17154",128,126,"Euphorbia amygdaloides Ascot Rainbow","řízek",null,1,"N","A",null,null,null,null,null,null,null,null,null,null,null,15.45,1946.11,0,0]
["42377",128,126,"Euphorbia amygdaloides Miners Merlot","řízek",null,1,"N","A",null,null,null,null,null,null,null,null,null,null,null,17.510000000000002,2206.36,0,0]
["12737",128,126,"Euphorbia amygdaloides Purpurea","řízek",null,1,"N",null,null,null,null,null,null,null,null,null,null,null,null,9.65,1216.44,0,0]
["12738",128,126,"Euphorbia amygdaloides Robbiae","řízek",null,1,"N",null,null,null,null,null,null,null,null,null,null,null,null,11.24,1415.96,0,0]
["11703",288,284,"Euphorbia myrsinites","semenáč",null,2,"N",null,null,null,null,null,null,null,null,null,null,null,null,7.03,1996.04,0,0]
["42648",128,126,"Euphorbia x martinii Ascot Petite","řízek","new",1,"N","A",null,null,null,null,null,null,null,null,null,null,null,16.98,2138.89,0,0]
["11287",288,284,"Festuca amethystina","semenáč",null,3,"N",null,null,null,null,null,null,null,null,null,null,null,null,3.58,1017.28,0,0]
["11288",288,284,"Festuca cinerea Festina™","semenáč",null,3,"N",null,null,null,null,null,null,null,null,null,null,null,null,3.58,1017.28,0,0]
["11290",288,284,"Festuca gautieri","semenáč",null,3,"N",null,null,null,null,null,null,null,null,null,null,null,null,6.77,1922.17,0,0]
["11292",288,284,"Festuca valesiaca Glaucantha","semenáč",null,3,"N",null,null,null,null,null,null,null,null,null,null,null,null,6.77,1922.17,0,0]
["11706",288,284,"Fragaria vesca Alexandria","semenáč",null,2,"N",null,null,null,null,null,null,null,null,null,null,null,null,3.59,1018.37,0,0]
["18524",288,284,"Gaillardia aristata Arizona African Sunset","semenáč",null,1,"Y",null,null,null,null,null,null,null,null,null,null,null,null,5.4,1534.36,0,0]
["18525",288,284,"Gaillardia aristata Arizona Red Shades","semenáč",null,1,"Y",null,null,null,null,null,null,null,null,null,null,null,null,5.4,1534.36,0,0]
["15133",84,84,"Gaillardia aristata Arizona Sun","semenáč",null,2,"N",null,null,null,null,null,null,null,null,null,null,null,null,11.21,941.56,0,0]
["15133",288,284,"Gaillardia aristata Arizona Sun","semenáč",null,1,"Y",null,null,null,null,null,null,null,null,null,null,null,null,5.4,1534.36,0,0]
["11708",288,284,"Gaillardia aristata Burgunder","semenáč",null,1,"Y",null,null,null,null,null,null,null,null,null,null,null,null,3.91,1111.79,0,0]
["36993",128,126,"Gaillardia aristata Guapa Flamenco Bicolour","řízek",null,1,"Y","A",null,null,null,null,null,null,null,null,null,null,null,13.45,1694.53,0,0]
["37053",128,126,"Gaillardia aristata Guapa Red","řízek",null,1,"Y","A",null,null,null,null,null,null,null,null,null,null,null,13.45,1694.53,0,0]
["36430",128,126,"Gaillardia aristata Guapa Tango Bicolour","řízek",null,1,"Y","A",null,null,null,null,null,null,null,null,null,null,null,13.45,1694.53,0,0]
["11709",288,284,"Gaillardia aristata Kobold (Goblin)","semenáč",null,1,"Y",null,null,null,null,null,null,null,null,null,null,null,null,3.91,1111.79,0,0]
["33096",288,284,"Gaillardia aristata Mesa™ Red","semenáč",null,1,"Y",null,null,null,null,null,null,null,null,null,null,null,null,5.4,1534.36,0,0]
["17418",288,284,"Gaillardia aristata Mesa™ Yellow","semenáč",null,1,"Y",null,null,null,null,null,null,null,null,null,null,null,null,5.4,1534.36,0,0]
["19449",84,84,"Gaura lindheimeri Ellura White","semenáč",null,2,"N",null,null,null,null,null,null,null,null,null,null,null,null,11.84,994.26,0,0]
["19449",288,284,"Gaura lindheimeri Ellura White","semenáč",null,1,"N",null,null,null,null,null,null,null,null,null,null,null,null,6.44,1827.66,0,0]
["41815",180,178,"Gaura lindheimeri Gaudi® Medium Pink Impr.","řízek",null,1,"Y","A",null,null,null,null,null,null,null,null,null,null,null,10.02,1784,0,0]
["41816",180,178,"Gaura lindheimeri Gaudi® Medium Rose","řízek",null,1,"Y","A",null,null,null,null,null,null,null,null,null,null,null,10.02,1784,0,0]
["35564",180,178,"Gaura lindheimeri Gaudi® Medium White","řízek",null,1,"Y","A",null,null,null,null,null,null,null,null,null,null,null,10.02,1784,0,0]
["19402",180,178,"Gaura lindheimeri Gaudi® Pink","řízek",null,1,"Y","A",null,null,null,null,null,null,null,null,null,null,null,10.02,1784,0,0]
["19403",180,178,"Gaura lindheimeri Gaudi® Red","řízek",null,1,"Y","A",null,null,null,null,null,null,null,null,null,null,null,10.02,1784,0,0]
["19404",180,178,"Gaura lindheimeri Gaudi® Rose","řízek",null,1,"Y","A",null,null,null,null,null,null,null,null,null,null,null,10.02,1784,0,0]
["34431",180,178,"Gaura lindheimeri Gaudi® White","řízek",null,1,"Y","A",null,null,null,null,null,null,null,null,null,null,null,10.02,1784,0,0]
["30219",128,126,"Gaura lindheimeri Rosy Jane","řízek",null,1,"Y","A",null,null,null,null,null,null,null,null,null,null,null,15.62,1968.28,0,0]
["19754",180,178,"Gaura lindheimeri Siskiyou","řízek",null,1,"Y",null,null,null,null,null,null,null,null,null,null,null,null,9.33,1661.44,0,0]
["12742",180,178,"Gaura lindheimeri Whirling Butterflies","řízek",null,1,"Y",null,null,null,null,null,null,null,null,null,null,null,null,8.7899999999999991,1565.44,0,0]
["15314",288,284,"Geranium sanguineum Vision® Pink","semenáč",null,1,"Y",null,null,null,null,null,null,null,null,null,null,null,null,11.36,3226.82,0,0]
["15395",288,284,"Geranium sanguineum Vision® Violet","semenáč",null,1,"Y",null,null,null,null,null,null,null,null,null,null,null,null,11.36,3226.82,0,0]
["37124",84,84,"Geranium wallichianum Bloom Me Away","řízek",null,1,"Y","A",null,null,null,null,null,null,null,null,null,null,null,38.49,3232.75,0,0]
["43130",84,84,"Geranium wallichianum Kelly Anne","řízek",null,1,"Y","A",null,null,null,null,null,null,null,null,null,null,null,38.49,3232.75,0,0]
["43632",180,178,"Geum coccineum Tosai MixMasters® Orange Yellow","semenáč",null,2,"N",null,null,null,null,null,null,null,null,null,null,null,null,6.52,1160.3399999999999,0,0]
["17548",288,284,"Geum coccineum Tosai Orange","semenáč",null,2,"N",null,null,null,null,null,null,null,null,null,null,null,null,5.22,1482.22,0,0]
["36804",288,284,"Geum coccineum Tosai Yellow","semenáč",null,2,"N",null,null,null,null,null,null,null,null,null,null,null,null,5.22,1482.22,0,0]
["11723",84,84,"Geum chiloense Lady Stratheden (Goldball)","semenáč",null,3,"N",null,null,null,null,null,null,null,null,null,null,null,null,11.34,952.17,0,0]
["11723",288,284,"Geum chiloense Lady Stratheden (Goldball)","semenáč",null,2,"N",null,null,null,null,null,null,null,null,null,null,null,null,4.05,1150.9000000000001,0,0]
["11722",84,84,"Geum chiloense Mrs. Bradshaw (Feuerball)","semenáč",null,3,"N",null,null,null,null,null,null,null,null,null,null,null,null,11.34,952.17,0,0]
["11722",288,284,"Geum chiloense Mrs. Bradshaw (Feuerball)","semenáč",null,2,"N",null,null,null,null,null,null,null,null,null,null,null,null,4.05,1150.9000000000001,0,0]
["36073",180,178,"Gypsophila cerastioides Plena White","řízek",null,1,"N","A",null,null,null,null,null,null,null,null,null,null,null,10.59,1884.76,0,0]
["17329",288,284,"Gypsophila cerastioides White","semenáč",null,2,"N",null,null,null,null,null,null,null,null,null,null,null,null,6.57,1865.68,0,0]
["12942",288,284,"Gypsophila fastigiata Silverstar","semenáč",null,2,"N",null,null,null,null,null,null,null,null,null,null,null,null,4.2,1192.18,0,0]
["11728",288,284,"Gypsophila paniculata Snowflake","semenáč",null,2,"N",null,null,null,null,null,null,null,null,null,null,null,null,3.52,998.82,0,0]
["18526",288,284,"Gypsophila repens Filou Rose","semenáč",null,2,"N",null,null,null,null,null,null,null,null,null,null,null,null,4.08,1159.5899999999999,0,0]
["18527",288,284,"Gypsophila repens Filou White","semenáč",null,2,"N",null,null,null,null,null,null,null,null,null,null,null,null,4.08,1159.5899999999999,0,0]
["14789",288,284,"Helenium autumnale Helena Gold","semenáč",null,2,"N",null,null,null,null,null,null,null,null,null,null,null,null,5.13,1458.32,{"$f":"V397*(J397+K397+L397+M397+N397+O397+P397+Q397+R397+S397+T397)","v":0},{"$f":"W397*1.12","v":0}]
["14790",288,284,"Helenium autumnale Helena Red Shades","semenáč",null,2,"N",null,null,null,null,null,null,null,null,null,null,null,null,5.13,1458.32,0,0]
["12744",180,178,"Helianthemum nummularium Cerise","řízek",null,1,"Y",null,null,null,null,null,null,null,null,null,null,null,null,9.1300000000000008,1625.36,0,0]
["12745",180,178,"Helianthemum nummularium Golden","řízek",null,1,"Y",null,null,null,null,null,null,null,null,null,null,null,null,9.1300000000000008,1625.36,0,0]
["12746",180,178,"Helianthemum nummularium Lawrensons Pink","řízek",null,1,"Y",null,null,null,null,null,null,null,null,null,null,null,null,9.1300000000000008,1625.36,0,0]
["12747",180,178,"Helianthemum nummularium The Bride","řízek",null,1,"Y",null,null,null,null,null,null,null,null,null,null,null,null,9.66,1720,0,0]
["42949",128,126,"Heliopsis helianthoides Solar Flare","řízek","new",1,"N","A",null,null,null,null,null,null,null,null,null,null,null,17.38,2189.4899999999998,0,0]
["11741",288,284,"Hesperis matronalis Violet","semenáč",null,2,"N",null,null,null,null,null,null,null,null,null,null,null,null,4.3899999999999997,1247.58,0,0]
["11742",288,284,"Hesperis matronalis White","semenáč",null,2,"N",null,null,null,null,null,null,null,null,null,null,null,null,4.3899999999999997,1247.58,0,0]
["12923",180,178,"Heuchera americana Dale`s Strain","semenáč",null,1,"N",null,null,null,null,null,null,null,null,null,null,null,null,6.22,1107.9100000000001,0,0]
["13257",180,178,"Heuchera americana Melting Fire","semenáč",null,1,"N",null,null,null,null,null,null,null,null,null,null,null,null,7.74,1377.53,0,0]
["11745",84,84,"Heuchera americana Palace Purple","semenáč",null,3,"N",null,null,null,null,null,null,null,null,null,null,null,null,10.73,901.08,0,0]
["11745",288,284,"Heuchera americana Palace Purple","semenáč",null,2,"N",null,null,null,null,null,null,null,null,null,null,null,null,3.36,954.28,0,0]
["11746",180,178,"Heuchera sanguinea Leuchtkäfer","semenáč",null,2,"N",null,null,null,null,null,null,null,null,null,null,null,null,5.6,996.93,0,0]
["14710",180,178,"Heuchera sanguinea Ruby Bells","semenáč",null,2,"N",null,null,null,null,null,null,null,null,null,null,null,null,6.22,1107.9100000000001,0,0]
["41428",84,84,"Heuchera villosa Candlelights Lime","řízek",null,1,"N","A",null,null,null,null,null,null,null,null,null,null,null,52.28,4391.68,0,0]
["38108",84,84,"Heuchera villosa Candlelights Red","řízek",null,1,"N","A",null,null,null,null,null,null,null,null,null,null,null,52.28,4391.68,0,0]
["37883",84,84,"Heuchera villosa Carnival Burgundy Blast","řízek",null,1,"N","A",null,null,null,null,null,null,null,null,null,null,null,32.840000000000003,2758.19,0,0]
["37942",84,84,"Heuchera villosa Carnival Cinnamon Stick","řízek",null,1,"N","A",null,null,null,null,null,null,null,null,null,null,null,32.840000000000003,2758.19,0,0]
["34025",84,84,"Heuchera villosa Carnival Cocomint","řízek",null,1,"N","A",null,null,null,null,null,null,null,null,null,null,null,32.840000000000003,2758.19,0,0]
["34027",84,84,"Heuchera villosa Carnival Fall Festival","řízek",null,1,"N","A",null,null,null,null,null,null,null,null,null,null,null,32.840000000000003,2758.19,0,0]
["41858",84,84,"Heuchera villosa Carnival Fire","řízek",null,1,"N","A",null,null,null,null,null,null,null,null,null,null,null,32.840000000000003,2758.19,0,0]
["43127",84,84,"Heuchera villosa Carnival Lime","řízek","new",1,"N","A",null,null,null,null,null,null,null,null,null,null,null,32.840000000000003,2758.19,0,0]
["34029",84,84,"Heuchera villosa Carnival Peach Parfait","řízek",null,1,"N","A",null,null,null,null,null,null,null,null,null,null,null,32.840000000000003,2758.19,0,0]
["34030",84,84,"Heuchera villosa Carnival Plum Crazy","řízek",null,1,"N","A",null,null,null,null,null,null,null,null,null,null,null,32.840000000000003,2758.19,0,0]
["34031",84,84,"Heuchera villosa Carnival Rose Granita","řízek",null,1,"N","A",null,null,null,null,null,null,null,null,null,null,null,32.840000000000003,2758.19,0,0]
["34033",84,84,"Heuchera villosa Carnival Watermelon","řízek",null,1,"N","A",null,null,null,null,null,null,null,null,null,null,null,32.840000000000003,2758.19,0,0]
["38110",84,84,"Heuchera villosa Hip Hip Hooray","řízek",null,1,"N","A",null,null,null,null,null,null,null,null,null,null,null,38.57,3240.14,0,0]
["17585",84,84,"Hibiscus moscheutos Luna F1 Pink Swirl","semenáč",null,1,"N",null,null,null,null,null,null,null,null,null,null,null,null,15.71,1319.41,0,0]
["17583",84,84,"Hibiscus moscheutos Luna F1 Red","semenáč",null,1,"N",null,null,null,null,null,null,null,null,null,null,null,null,15.71,1319.41,0,0]
["17586",84,84,"Hibiscus moscheutos Luna F1 Rose","semenáč",null,1,"N",null,null,null,null,null,null,null,null,null,null,null,null,15.71,1319.41,0,0]
["17587",84,84,"Hibiscus moscheutos Luna F1 White","semenáč",null,1,"N",null,null,null,null,null,null,null,null,null,null,null,null,15.71,1319.41,0,0]
["11755",180,178,"Hypericum calycinum Rose of Sharon","semenáč",null,1,"N",null,null,null,null,null,null,null,null,null,null,null,null,8.43,1500.08,0,0]
["11758",288,284,"Hypericum polyphyllum Grandiflorum","semenáč",null,2,"N",null,null,null,null,null,null,null,null,null,null,null,null,4.3,1221.51,0,0]
["11527",288,284,"Chaenorhinum origanifolium Blue Dream","semenáč",null,2,"N",null,null,null,null,null,null,null,null,null,null,null,null,4.82,1368.16,0,0]
["14787",180,178,"Iberis sempervirens Appen-Etz","řízek",null,1,"Y",null,null,null,null,null,null,null,null,null,null,null,null,7.94,1413.62,0,0]
["14786",180,178,"Iberis sempervirens Fischbeck","řízek",null,1,"Y",null,null,null,null,null,null,null,null,null,null,null,null,7.7,1370.72,0,0]
["30371",180,178,"Iberis sempervirens Nevina","řízek",null,1,"Y","A",null,null,null,null,null,null,null,null,null,null,null,9.23,1643.06,0,0]
["12749",180,178,"Iberis sempervirens Snowflake","řízek",null,1,"N",null,null,null,null,null,null,null,null,null,null,null,null,7.94,1413.62,0,0]
["38444",180,178,"Iberis sempervirens Snowpatrol  ","řízek","new",1,"N","A",null,null,null,null,null,null,null,null,null,null,null,9.61,1711.15,0,0]
["30309",288,284,"Iberis sempervirens Whiteout","semenáč",null,1,"N",null,null,null,null,null,null,null,null,null,null,null,null,4.78,1358.38,0,0]
["11766",288,284,"Inula ensifolia Yellow","semenáč",null,2,"N",null,null,null,null,null,null,null,null,null,null,null,null,4.22,1198.7,0,0]
["11772",288,284,"Jasione laevis Blue Light","semenáč",null,2,"N",null,null,null,null,null,null,null,null,null,null,null,null,4.16,1181.32,0,0]
["43167",288,284,"Juncus effusus Blue Dart","semenáč","new",3,"N",null,null,null,null,null,null,null,null,null,null,null,null,9.24,2622.84,0,0]
["31056",288,284,"Juncus effusus Spiralis","semenáč",null,3,"N",null,null,null,null,null,null,null,null,null,null,null,null,9.24,2622.84,0,0]
["11773",288,284,"Knautia macedonica Melton Pastels™","semenáč",null,1,"N",null,null,null,null,null,null,null,null,null,null,null,null,6.62,1878.72,0,0]
["14366",180,178,"Knautia macedonica Red Knight","semenáč",null,1,"N",null,null,null,null,null,null,null,null,null,null,null,null,12.03,2141.44,0,0]
["11776",288,284,"Kniphofia uvaria Flamenco","semenáč",null,1,"Y",null,null,null,null,null,null,null,null,null,null,null,null,5.53,1571.3,0,0]
["11774",288,284,"Kniphofia uvaria Royal Castle","semenáč",null,2,"Y",null,null,null,null,null,null,null,null,null,null,null,null,4.1500000000000004,1179.1400000000001,0,0]
["11295",288,280,"Koeleria glauca Coolio™","semenáč",null,3,"N",null,null,null,null,null,null,null,null,null,null,null,null,3.61,1011.07,0,0]
["41796",180,178,"Lavandula angustifolia Anna","řízek",null,1,"Y","A",null,null,null,null,null,null,null,null,null,null,null,10.36,1843.23,0,0]
["31145",84,84,"Lavandula angustifolia Ardèche® Blue","semenáč",null,3,"N",null,null,null,null,null,null,null,null,null,null,null,null,12.78,1073.3,0,0]
["31145",84,84,"Lavandula angustifolia Ardèche® Blue","semenáč","new",4,"N",null,null,null,null,null,null,null,null,null,null,null,null,14.27,1198.5999999999999,0,0]
["31145",180,178,"Lavandula angustifolia Ardèche® Blue","semenáč",null,3,"N",null,null,null,null,null,null,null,null,null,null,null,null,5.96,1061.6199999999999,0,0]
["31145",288,284,"Lavandula angustifolia Ardèche® Blue","semenáč",null,2,"N",null,null,null,null,null,null,null,null,null,null,null,null,4.1500000000000004,1178.06,0,0]
["43450",84,84,"Lavandula angustifolia Ardèche® MixMasters® Air Force","semenáč","new",4,"N",null,null,null,null,null,null,null,null,null,null,null,null,12.16,1021.25,0,0]
["43450",180,178,"Lavandula angustifolia Ardèche® MixMasters® Air Force","semenáč","new",4,"N",null,null,null,null,null,null,null,null,null,null,null,null,8.93,1589.27,0,0]
["12928",180,178,"Lavandula angustifolia Dwarf Blue","řízek",null,1,"Y",null,null,null,null,null,null,null,null,null,null,null,null,8.44,1502.81,0,0]
["12750",180,178,"Lavandula angustifolia Edelweiss","řízek",null,1,"Y",null,null,null,null,null,null,null,null,null,null,null,null,8.44,1502.81,0,0]
["35827",180,178,"Lavandula angustifolia Ellagance Snow","semenáč",null,3,"N",null,null,null,null,null,null,null,null,null,null,null,null,6.66,1185.53,0,0]
["15727",180,178,"Lavandula angustifolia Essence® Purple","řízek",null,1,"Y","A",null,null,null,null,null,null,null,null,null,null,null,10.199999999999999,1816,0,0]
["34713",180,178,"Lavandula angustifolia Grosso Ornamental","řízek",null,1,"Y","A",null,null,null,null,null,null,null,null,null,null,null,8.6300000000000008,1535.49,0,0]
["30328",180,178,"Lavandula angustifolia Hidcote","řízek",null,1,"Y",null,null,null,null,null,null,null,null,null,null,null,null,8.2899999999999991,1475.57,0,0]
["18276",288,284,"Lavandula angustifolia Hidcote Compact Blue","semenáč",null,3,"N",null,null,null,null,null,null,null,null,null,null,null,null,3.57,1015.11,0,0]
["35653",180,178,"Lavandula angustifolia Lavici® Blue","řízek",null,1,"Y","A",null,null,null,null,null,null,null,null,null,null,null,10.36,1843.23,{"$f":"V461*(J461+K461+L461+M461+N461+O461+P461+Q461+R461+S461+T461)","v":0},{"$f":"W461*1.12","v":0}]
["13074",180,178,"Lavandula angustifolia Munstead","řízek",null,1,"Y",null,null,null,null,null,null,null,null,null,null,null,null,8.44,1502.81,0,0]
["42141",180,178,"Lavandula angustifolia Phenomenal","řízek",null,1,"Y","A",null,null,null,null,null,null,null,null,null,null,null,12.58,2238.81,0,0]
["12752",180,178,"Lavandula angustifolia Rosea","řízek",null,1,"Y",null,null,null,null,null,null,null,null,null,null,null,null,8.44,1502.81,0,0]
["14626",180,178,"Lavandula angustifolia Silver Mist","řízek",null,1,"Y","A",null,null,null,null,null,null,null,null,null,null,null,10.36,1843.23,0,0]
["33100",180,178,"Lavandula angustifolia Spear Blue","semenáč",null,2,"N",null,null,null,null,null,null,null,null,null,null,null,null,8.1199999999999992,1444.93,0,0]
["33100",288,284,"Lavandula angustifolia Spear Blue","semenáč",null,2,"N",null,null,null,null,null,null,null,null,null,null,null,null,6.6,1875.46,0,0]
["32787",180,178,"Lavandula angustifolia SuperBlue","řízek",null,1,"Y","A",null,null,null,null,null,null,null,null,null,null,null,11.12,1979.4,0,0]
["32215",84,84,"Lavandula angustifolia Valence Dark Violet","semenáč",null,4,"N",null,null,null,null,null,null,null,null,null,null,null,null,12.89,1082.6099999999999,0,0]
["32215",180,178,"Lavandula angustifolia Valence Dark Violet","semenáč",null,3,"N",null,null,null,null,null,null,null,null,null,null,null,null,7.23,1286.3,0,0]
["32215",288,284,"Lavandula angustifolia Valence Dark Violet","semenáč",null,2,"N",null,null,null,null,null,null,null,null,null,null,null,null,5.51,1563.69,0,0]
["32174",128,126,"Lavandula angustifolia White Fragrance","řízek",null,1,"Y",null,null,null,null,null,null,null,null,null,null,null,null,9.7200000000000006,1224.6300000000001,0,0]
["35654",180,178,"Lavandula angustifolia White Summer","řízek",null,1,"Y","A",null,null,null,null,null,null,null,null,null,null,null,10.74,1911.32,0,0]
["34539",288,284,"Lavandula stoechas Bandera 2.0 Deep Purple","semenáč",null,1,"N",null,null,null,null,null,null,null,null,null,null,null,null,7.37,2093.81,0,0]
["34521",288,284,"Lavandula stoechas Bandera 2.0 Deep Rose","semenáč",null,1,"N",null,null,null,null,null,null,null,null,null,null,null,null,7.37,2093.81,0,0]
["41721",128,126,"Lavandula stoechas Fantasia Early Pink","řízek",null,1,"Y","A",null,null,null,null,null,null,null,null,null,null,null,13.66,1720.56,0,0]
["41722",128,126,"Lavandula stoechas Fantasia Early Purple","řízek",null,1,"Y","A",null,null,null,null,null,null,null,null,null,null,null,13.66,1720.56,0,0]
["36560",128,126,"Lavandula stoechas Lavinnova™ Purple Supreme","řízek",null,1,"Y","A",null,null,null,null,null,null,null,null,null,null,null,12.89,1624.17,0,0]
["11787",288,284,"Leontopodium alpinum","semenáč",null,2,"N",null,null,null,null,null,null,null,null,null,null,null,null,3.98,1131.3499999999999,0,0]
["17098",128,126,"Leontopodium souliei Alpina White","řízek",null,1,"N","A",null,null,null,null,null,null,null,null,null,null,null,11.4,1436.21,0,0]
["37042",128,126,"Leucanthemum maximum Banana Cream Yellow","řízek",null,1,"N","A",null,null,null,null,null,null,null,null,null,null,null,16.71,2105.15,0,0]
["31927",128,126,"Leucanthemum maximum Ooh La™ Lablanche","řízek",null,1,"N","A",null,null,null,null,null,null,null,null,null,null,null,13.47,1697.42,0,0]
["32762",128,126,"Leucanthemum maximum Ooh La™ Lacrème","řízek",null,1,"N","A",null,null,null,null,null,null,null,null,null,null,null,15,1890.2,0,0]
["16090",128,126,"Leucanthemum maximum Ooh La™ Lacrosse","řízek",null,1,"N","A",null,null,null,null,null,null,null,null,null,null,null,13.47,1697.42,0,0]
["31116",128,126,"Leucanthemum maximum Ooh La™ Lagrande","řízek",null,1,"N","A",null,null,null,null,null,null,null,null,null,null,null,13.47,1697.42,0,0]
["17678",128,126,"Leucanthemum maximum Ooh La™ Laspider","řízek",null,1,"N","A",null,null,null,null,null,null,null,null,null,null,null,13.47,1697.42,0,0]
["11554",288,284,"Leucanthemum maximum Silver Princess","semenáč",null,1,"N",null,null,null,null,null,null,null,null,null,null,null,null,3.54,1004.25,0,0]
["36314",288,284,"Leucanthemum maximum White Lion F1","semenáč",null,1,"N",null,null,null,null,null,null,null,null,null,null,null,null,6.36,1804.85,0,0]
["11551",288,284,"Leucanthemum vulgare May Queen","semenáč",null,2,"N",null,null,null,null,null,null,null,null,null,null,null,null,3.72,1055.3,0,0]
["20512",288,284,"Lewisia cotyledon Elise Mix","semenáč",null,1,"N",null,null,null,null,null,null,null,null,null,null,null,null,9.84,2793.38,0,0]
["11791",288,284,"Liatris spicata Floristan® Violet","semenáč",null,1,"Y",null,null,null,null,null,null,null,null,null,null,null,null,5.59,1587.59,0,0]
["10002",180,178,"Ligularia przewalskii","semenáč",null,1,"Y",null,null,null,null,null,null,null,null,null,null,null,null,12.15,2162.5500000000002,0,0]
["18726",128,126,"Lithodora diffusa Compact Blue","řízek",null,1,"Y",null,null,null,null,null,null,null,null,null,null,null,null,8.89,1119.56,0,0]
["12756",128,126,"Lithodora diffusa Heavenly Blue","řízek",null,1,"Y",null,null,null,null,null,null,null,null,null,null,null,null,8.89,1119.56,0,0]
["10011",84,84,"Lobelia fulgens Queen Victoria","semenáč",null,4,"N",null,null,null,null,null,null,null,null,null,null,null,null,11.95,1004.22,0,0]
["10011",288,284,"Lobelia fulgens Queen Victoria","semenáč",null,2,"N",null,null,null,null,null,null,null,null,null,null,null,null,4.88,1385.54,0,0]
["35525",84,84,"Lobelia speciosa Starship™ F1 Blue","semenáč",null,3,"N",null,null,null,null,null,null,null,null,null,null,null,null,17.809999999999999,1496.13,0,0]
["35525",288,284,"Lobelia speciosa Starship™ F1 Blue","semenáč",null,1,"N",null,null,null,null,null,null,null,null,null,null,null,null,6.13,1741.85,0,0]
["35526",84,84,"Lobelia speciosa Starship™ F1 Burgundy","semenáč",null,3,"N",null,null,null,null,null,null,null,null,null,null,null,null,17.809999999999999,1496.13,0,0]
["35526",288,284,"Lobelia speciosa Starship™ F1 Burgundy","semenáč",null,1,"N",null,null,null,null,null,null,null,null,null,null,null,null,6.13,1741.85,0,0]
["32760",84,84,"Lobelia speciosa Starship™ F1 Rose","semenáč",null,3,"N",null,null,null,null,null,null,null,null,null,null,null,null,17.809999999999999,1496.13,0,0]
["32760",288,284,"Lobelia speciosa Starship™ F1 Rose","semenáč",null,1,"N",null,null,null,null,null,null,null,null,null,null,null,null,6.13,1741.85,0,0]
["20764",84,84,"Lobelia speciosa Starship™ F1 Scarlet","semenáč",null,3,"N",null,null,null,null,null,null,null,null,null,null,null,null,17.809999999999999,1496.13,0,0]
["20764",288,284,"Lobelia speciosa Starship™ F1 Scarlet","semenáč",null,1,"N",null,null,null,null,null,null,null,null,null,null,null,null,6.13,1741.85,0,0]
["37014",84,84,"Lobelia speciosa Starship™ F1 Scarlet Bronze Leaved","semenáč",null,3,"N",null,null,null,null,null,null,null,null,null,null,null,null,17.809999999999999,1496.13,0,0]
["37014",288,284,"Lobelia speciosa Starship™ F1 Scarlet Bronze Leaved","semenáč",null,1,"N",null,null,null,null,null,null,null,null,null,null,null,null,6.13,1741.85,0,0]
["11803",84,84,"Lupinus polyphyllus Legendary Blue Shades","semenáč",null,3,"N",null,null,null,null,null,null,null,null,null,null,null,null,12.83,1078.1199999999999,0,0]
["11803",180,178,"Lupinus polyphyllus Legendary Blue Shades","semenáč",null,1,"N",null,null,null,null,null,null,null,null,null,null,null,null,4.9800000000000004,886.64,0,0]
["11808",84,84,"Lupinus polyphyllus Legendary Mix","semenáč",null,4,"N",null,null,null,null,null,null,null,null,null,null,null,null,12.83,1078.1199999999999,0,0]
["11808",180,178,"Lupinus polyphyllus Legendary Mix","semenáč",null,1,"N",null,null,null,null,null,null,null,null,null,null,null,null,4.9800000000000004,886.64,0,0]
["11804",84,84,"Lupinus polyphyllus Legendary Red Shades","semenáč",null,3,"N",null,null,null,null,null,null,null,null,null,null,null,null,12.83,1078.1199999999999,0,0]
["11804",180,178,"Lupinus polyphyllus Legendary Red Shades","semenáč",null,1,"N",null,null,null,null,null,null,null,null,null,null,null,null,4.9800000000000004,886.64,0,0]
["11805",84,84,"Lupinus polyphyllus Legendary Rose Shades","semenáč",null,3,"N",null,null,null,null,null,null,null,null,null,null,null,null,12.83,1078.1199999999999,0,0]
["11805",180,178,"Lupinus polyphyllus Legendary Rose Shades","semenáč",null,1,"N",null,null,null,null,null,null,null,null,null,null,null,null,4.9800000000000004,886.64,0,0]
["16345",180,178,"Lupinus polyphyllus Legendary Special Mix","semenáč",null,1,"N",null,null,null,null,null,null,null,null,null,null,null,null,4.9800000000000004,886.64,0,0]
["11806",84,84,"Lupinus polyphyllus Legendary White Shades","semenáč",null,3,"N",null,null,null,null,null,null,null,null,null,null,null,null,12.83,1078.1199999999999,0,0]
["11806",180,178,"Lupinus polyphyllus Legendary White Shades","semenáč",null,1,"N",null,null,null,null,null,null,null,null,null,null,null,null,4.9800000000000004,886.64,0,0]
["11807",84,84,"Lupinus polyphyllus Legendary Yellow Shades","semenáč",null,3,"N",null,null,null,null,null,null,null,null,null,null,null,null,12.83,1078.1199999999999,0,0]
["11807",180,178,"Lupinus polyphyllus Legendary Yellow Shades","semenáč",null,1,"N",null,null,null,null,null,null,null,null,null,null,null,null,4.9800000000000004,886.64,0,0]
["11297",288,284,"Luzula nivea Lucius","semenáč",null,3,"N",null,null,null,null,null,null,null,null,null,null,null,null,5.44,1546.31,0,0]
["11298",288,284,"Luzula sylvatica Starmaker™","semenáč",null,1,"N",null,null,null,null,null,null,null,null,null,null,null,null,5.44,1546.31,0,0]
["11810",288,284,"Lychnis alpina Magenta","semenáč",null,2,"N",null,null,null,null,null,null,null,null,null,null,null,null,4.4400000000000004,1260.6199999999999,0,0]
["11815",288,284,"Lychnis coronaria Atrosanguinea","semenáč",null,1,"N",null,null,null,null,null,null,null,null,null,null,null,null,4.2300000000000004,1200.8699999999999,0,0]
["11813",288,284,"Lychnis chalcedonica Red","semenáč",null,2,"N",null,null,null,null,null,null,null,null,null,null,null,null,4.01,1137.8599999999999,0,0]
["11820",288,284,"Lychnis viscaria Splendens","semenáč",null,2,"N",null,null,null,null,null,null,null,null,null,null,null,null,4.09,1161.76,{"$f":"V525*(J525+K525+L525+M525+N525+O525+P525+Q525+R525+S525+T525)","v":0},{"$f":"W525*1.12","v":0}]
["12757",180,178,"Lythrum salicaria Robert","řízek",null,1,"Y",null,null,null,null,null,null,null,null,null,null,null,null,8.33,1482.38,0,0]
["14534",180,178,"Lythrum salicaria Robin","řízek",null,1,"Y","A",null,null,null,null,null,null,null,null,null,null,null,9.86,1754.72,0,0]
["11823",288,284,"Lythrum salicaria Rosy Gem","semenáč",null,2,"N",null,null,null,null,null,null,null,null,null,null,null,null,4.47,1269.31,0,0]
["11827",288,284,"Malva moschata Alba","semenáč",null,2,"N",null,null,null,null,null,null,null,null,null,null,null,null,4.13,1173.71,0,0]
["11828",288,284,"Malva moschata Rosea","semenáč",null,2,"N",null,null,null,null,null,null,null,null,null,null,null,null,4.07,1155.24,0,0]
["13928",288,284,"Malva sylvestris Zebrina","semenáč",null,1,"N",null,null,null,null,null,null,null,null,null,null,null,null,5.84,1658.2,0,0]
["11299",288,284,"Miscanthus sinensis","semenáč",null,2,"N",null,null,null,null,null,null,null,null,null,null,null,null,4.53,1287.77,0,0]
["31967",128,126,"Monarda didyma Balmy Lilac","řízek",null,1,"N","A",null,null,null,null,null,null,null,null,null,null,null,15,1890.2,0,0]
["31968",128,126,"Monarda didyma Balmy Pink","řízek",null,1,"N","A",null,null,null,null,null,null,null,null,null,null,null,15,1890.2,0,0]
["31969",128,126,"Monarda didyma Balmy Purple Red","řízek",null,1,"N","A",null,null,null,null,null,null,null,null,null,null,null,15,1890.2,0,0]
["31970",128,126,"Monarda didyma Balmy Rose","řízek",null,1,"N","A",null,null,null,null,null,null,null,null,null,null,null,15,1890.2,0,0]
["12886",288,284,"Monarda didyma Red Shades","semenáč",null,2,"Y",null,null,null,null,null,null,null,null,null,null,null,null,6.47,1837.44,0,0]
["43222",84,84,"Multi specie MixMasters® Robin Rocks","řízek","new",2,"Y","A",null,null,null,null,null,null,null,null,null,null,null,26.99,2267.5700000000002,0,0]
["43213",84,82,"Multi specie MixMasters® Roof Runners","řízek","new",3,"N",null,null,null,null,null,null,null,null,null,null,null,null,20.81,1706.44,0,0]
["11854",288,284,"Nepeta faassenii","semenáč",null,2,"N",null,null,null,null,null,null,null,null,null,null,null,null,3.5,993.39,0,0]
["36609",180,178,"Nepeta faassenii Cat’s Pajamas Blue","řízek",null,1,"Y","A",null,null,null,null,null,null,null,null,null,null,null,13.14,2338.89,0,0]
["37021",128,126,"Nepeta faassenii Picture Purrfect  ","řízek","new",1,"Y","A",null,null,null,null,null,null,null,null,null,null,null,13.16,1658.38,0,0]
["13700",180,178,"Nepeta faassenii Six Hills Giant","řízek",null,1,"Y",null,null,null,null,null,null,null,null,null,null,null,null,8.35,1486.47,0,0]
["30227",128,126,"Nepeta faassenii Walker’s Low","řízek",null,1,"Y",null,null,null,null,null,null,null,null,null,null,null,null,8.82,1111.3699999999999,0,0]
["37750",128,126,"Nepeta subsessilis Purple Prelude","řízek",null,1,"Y","A",null,null,null,null,null,null,null,null,null,null,null,13.54,1706.58,0,0]
["11857",288,284,"Oenothera macrocarpa","semenáč",null,1,"N",null,null,null,null,null,null,null,null,null,null,null,null,6.56,1863.51,0,0]
["11861",288,284,"Papaver miyabeanum Pacino®","semenáč",null,2,"N",null,null,null,null,null,null,null,null,null,null,null,null,3.72,1055.3,0,0]
["11863",84,84,"Papaver nudicaule Pop-Up Mix","semenáč",null,4,"N",null,null,null,null,null,null,null,null,null,null,null,null,11.99,1007.43,0,0]
["11863",288,284,"Papaver nudicaule Pop-Up Mix","semenáč",null,2,"N",null,null,null,null,null,null,null,null,null,null,null,null,3.92,1112.8800000000001,0,0]
["18287",288,284,"Papaver nudicaule Pop-up Orange","semenáč",null,2,"N",null,null,null,null,null,null,null,null,null,null,null,null,3.92,1112.8800000000001,0,0]
["18288",288,284,"Papaver nudicaule Pop-up Red","semenáč",null,2,"N",null,null,null,null,null,null,null,null,null,null,null,null,3.92,1112.8800000000001,0,0]
["18699",288,284,"Papaver nudicaule Pop-up Rose","semenáč",null,2,"N",null,null,null,null,null,null,null,null,null,null,null,null,3.92,1112.8800000000001,0,0]
["18289",288,284,"Papaver nudicaule Pop-up White","semenáč",null,2,"N",null,null,null,null,null,null,null,null,null,null,null,null,3.92,1112.8800000000001,0,0]
["18290",288,284,"Papaver nudicaule Pop-up Yellow","semenáč",null,2,"N",null,null,null,null,null,null,null,null,null,null,null,null,3.92,1112.8800000000001,0,0]
["16446",288,284,"Papaver orientale Beauty of Livermere","semenáč",null,2,"N",null,null,null,null,null,null,null,null,null,null,null,null,4.07,1156.33,0,0]
["11872",288,284,"Papaver orientale Brillant","semenáč",null,2,"N",null,null,null,null,null,null,null,null,null,null,null,null,4.07,1156.33,0,0]
["11874",288,284,"Papaver orientale Nana Allegro","semenáč",null,2,"N",null,null,null,null,null,null,null,null,null,null,null,null,4.07,1156.33,0,0]
["11870",288,284,"Papaver orientale Princess Victoria Louise","semenáč",null,2,"N",null,null,null,null,null,null,null,null,null,null,null,null,4.07,1156.33,0,0]
["15604",288,284,"Papaver orientale Royal Wedding","semenáč",null,2,"N",null,null,null,null,null,null,null,null,null,null,null,null,4.07,1156.33,0,0]
["11302",288,284,"Pennisetum alopecuroides","semenáč",null,2,"N",null,null,null,null,null,null,null,null,null,null,null,null,4.09,1160.68,0,0]
["11880",288,284,"Penstemon digitalis Husker Red","semenáč",null,2,"N",null,null,null,null,null,null,null,null,null,null,null,null,5.07,1440.94,0,0]
["37023",128,126,"Penstemon digitalis Onyx and Pearls","řízek",null,1,"N","A",null,null,null,null,null,null,null,null,null,null,null,15.81,1991.89,0,0]
["15024",128,126,"Penstemon hartwegii Picotee Red","řízek",null,1,"N",null,null,null,null,null,null,null,null,null,null,null,null,9.4700000000000006,1193.78,0,0]
["31283",128,126,"Penstemon hartwegii Polaris Magenta","řízek",null,1,"N","A",null,null,null,null,null,null,null,null,null,null,null,11,1386.56,0,0]
["17088",128,126,"Penstemon hartwegii Polaris Purple","řízek",null,1,"N","A",null,null,null,null,null,null,null,null,null,null,null,11,1386.56,0,0]
["17089",128,126,"Penstemon hartwegii Polaris Red","řízek",null,1,"N","A",null,null,null,null,null,null,null,null,null,null,null,11,1386.56,0,0]
["17681",128,126,"Penstemon hartwegii Polaris Rose","řízek",null,1,"N","A",null,null,null,null,null,null,null,null,null,null,null,11,1386.56,0,0]
["35656",128,126,"Penstemon hartwegii Quartz Red","řízek",null,1,"N","A",null,null,null,null,null,null,null,null,null,null,null,12.53,1579.34,0,0]
["32893",180,178,"Perovskia atriplicifolia Blue Steel","semenáč",null,1,"Y",null,null,null,null,null,null,null,null,null,null,null,null,11.54,2054.29,0,0]
["37871",84,84,"Perovskia atriplicifolia Bluesette","semenáč",null,1,"Y",null,null,null,null,null,null,null,null,null,null,null,null,21.34,1792.69,0,0]
["37871",180,178,"Perovskia atriplicifolia Bluesette","semenáč",null,1,"Y",null,null,null,null,null,null,null,null,null,null,null,null,13.51,2405.61,0,0]
["14425",180,178,"Phlox douglasii Admiral White","řízek",null,1,"Y",null,null,null,null,null,null,null,null,null,null,null,null,7.94,1412.93,0,0]
["36180",128,126,"Phlox paniculata Bee Best Mauve","řízek","new",1,"N","A",null,null,null,null,null,null,null,null,null,null,null,14.63,1843.94,0,0]
["36177",128,126,"Phlox paniculata Bee Best Purple Eye","řízek","new",1,"N","A",null,null,null,null,null,null,null,null,null,null,null,14.63,1843.94,0,0]
["42961",128,126,"Phlox paniculata Bee Best White Pink Eye","řízek","new",1,"N","A",null,null,null,null,null,null,null,null,null,null,null,14.63,1843.94,0,0]
["33127",128,126,"Phlox paniculata Famous Light Purple","řízek",null,1,"N","A",null,null,null,null,null,null,null,null,null,null,null,14.63,1843.94,0,0]
["35664",128,126,"Phlox paniculata Famous Pink","řízek",null,1,"N","A",null,null,null,null,null,null,null,null,null,null,null,14.63,1843.94,0,0]
["35663",128,126,"Phlox paniculata Famous Pink Eye","řízek",null,1,"N","A",null,null,null,null,null,null,null,null,null,null,null,14.63,1843.94,0,0]
["35666",128,126,"Phlox paniculata Famous Purple","řízek",null,1,"N","A",null,null,null,null,null,null,null,null,null,null,null,14.63,1843.94,0,0]
["33130",128,126,"Phlox paniculata Famous White","řízek",null,1,"N","A",null,null,null,null,null,null,null,null,null,null,null,14.63,1843.94,0,0]
["33131",128,126,"Phlox paniculata Famous White with Eye","řízek",null,1,"N","A",null,null,null,null,null,null,null,null,null,null,null,14.63,1843.94,0,0]
["35907",128,126,"Phlox paniculata Ka-Pow Pink","řízek",null,1,"N","A",null,null,null,null,null,null,null,null,null,null,null,14.8,1865.14,0,0]
["35908",128,126,"Phlox paniculata Ka-Pow Purple","řízek",null,1,"N","A",null,null,null,null,null,null,null,null,null,null,null,14.8,1865.14,0,0]
["37231",128,126,"Phlox paniculata Ka-Pow White","řízek",null,1,"N","A",null,null,null,null,null,null,null,null,null,null,null,14.8,1865.14,0,0]
["42205",128,126,"Phlox paniculata Opening Act Romance","řízek","new",1,"Y","A",null,null,null,null,null,null,null,null,null,null,null,16.16,2036.72,0,0]
["14426",180,178,"Phlox subulata Amazing Grace","řízek",null,1,"Y",null,null,null,null,null,null,null,null,null,null,null,null,7.66,1363.23,0,0]
["12769",180,178,"Phlox subulata Atropurpurea","řízek",null,1,"Y",null,null,null,null,null,null,null,null,null,null,null,null,7.66,1363.23,0,0]
["14427",180,178,"Phlox subulata Bavaria","řízek",null,1,"Y",null,null,null,null,null,null,null,null,null,null,null,null,7.66,1363.23,0,0]
["12773",180,178,"Phlox subulata Emerald Cushion Blue","řízek",null,1,"Y",null,null,null,null,null,null,null,null,null,null,null,null,7.66,1363.23,{"$f":"V589*(J589+K589+L589+M589+N589+O589+P589+Q589+R589+S589+T589)","v":0},{"$f":"W589*1.12","v":0}]
["32531",180,178,"Phlox subulata Fabulous Blue Dark Center","řízek",null,1,"Y","A",null,null,null,null,null,null,null,null,null,null,null,9.19,1635.57,0,0]
["20857",180,178,"Phlox subulata Fabulous Blue Violet","řízek",null,1,"Y","A",null,null,null,null,null,null,null,null,null,null,null,9.19,1635.57,0,0]
["34095",180,178,"Phlox subulata Fabulous Dark Rose Eye","řízek",null,1,"Y","A",null,null,null,null,null,null,null,null,null,null,null,9.19,1635.57,0,0]
["38463",84,82,"Phlox subulata Fabulous Mixmasters® Fabulata","řízek","new",3,"Y","A",null,null,null,null,null,null,null,null,null,null,null,25.77,2113.25,0,0]
["36407",180,178,"Phlox subulata Fabulous Pink","řízek","new",1,"Y","A",null,null,null,null,null,null,null,null,null,null,null,9.19,1635.57,0,0]
["19662",180,178,"Phlox subulata Fabulous Rose","řízek",null,1,"Y","A",null,null,null,null,null,null,null,null,null,null,null,9.19,1635.57,0,0]
["20861",180,178,"Phlox subulata Fabulous White","řízek",null,1,"Y","A",null,null,null,null,null,null,null,null,null,null,null,9.19,1635.57,0,0]
["35474",180,178,"Phlox subulata Fabulous White Light Rose","řízek",null,1,"Y","A",null,null,null,null,null,null,null,null,null,null,null,9.19,1635.57,0,0]
["16503",180,178,"Phlox subulata Kimono Pink-White","řízek",null,1,"Y",null,null,null,null,null,null,null,null,null,null,null,null,7.66,1363.23,0,0]
["14785",180,178,"Phlox subulata McDaniel`s Cushion","řízek",null,1,"Y",null,null,null,null,null,null,null,null,null,null,null,null,7.66,1363.23,0,0]
["12897",180,178,"Phlox subulata Purple Beauty","řízek",null,1,"Y",null,null,null,null,null,null,null,null,null,null,null,null,7.66,1363.23,0,0]
["14428",180,178,"Phlox subulata Samson","řízek",null,1,"Y",null,null,null,null,null,null,null,null,null,null,null,null,7.66,1363.23,0,0]
["14371",180,178,"Phlox subulata White Delight","řízek",null,1,"Y",null,null,null,null,null,null,null,null,null,null,null,null,7.66,1363.23,0,0]
["14632",180,178,"Phlox subulata Zwergenteppich","řízek",null,1,"Y",null,null,null,null,null,null,null,null,null,null,null,null,7.66,1363.23,0,0]
["19945",288,284,"Phragmites australis","semenáč",null,2,"Y",null,null,null,null,null,null,null,null,null,null,null,null,4.67,1325.79,0,0]
["11884",288,284,"Physalis alkekengi Franchetii","semenáč",null,1,"N",null,null,null,null,null,null,null,null,null,null,null,null,3.69,1047.7,0,0]
["11887",288,284,"Physostegia virginiana Crystal Peak Rose","semenáč",null,1,"Y",null,null,null,null,null,null,null,null,null,null,null,null,6.05,1717.95,0,0]
["17220",288,284,"Physostegia virginiana Crystal Peak White","semenáč",null,1,"Y",null,null,null,null,null,null,null,null,null,null,null,null,6.05,1717.95,0,0]
["11898",288,284,"Polemonium caeruleum","semenáč",null,1,"Y",null,null,null,null,null,null,null,null,null,null,null,null,4.12,1170.45,0,0]
["11899",288,284,"Polemonium caeruleum Alba","semenáč",null,1,"N",null,null,null,null,null,null,null,null,null,null,null,null,4.12,1170.45,0,0]
["13766",288,284,"Polemonium caeruleum Bambino Blue","semenáč",null,1,"Y",null,null,null,null,null,null,null,null,null,null,null,null,3.93,1116.1400000000001,0,0]
["11906",288,284,"Potentilla megalantha","semenáč",null,1,"Y",null,null,null,null,null,null,null,null,null,null,null,null,3.7,1049.8699999999999,0,0]
["11907",288,284,"Potentilla nepalensis Miss Willmott","semenáč",null,1,"Y",null,null,null,null,null,null,null,null,null,null,null,null,3.7,1049.8699999999999,0,0]
["14698",288,284,"Potentilla nepalensis Ron Mc Beath","semenáč",null,1,"Y",null,null,null,null,null,null,null,null,null,null,null,null,3.7,1049.8699999999999,0,0]
["11940",288,284,"Primula capitata Noverna® Deep Blue","semenáč",null,1,"N",null,null,null,null,null,null,null,null,null,null,null,null,4.9400000000000004,1404.01,0,0]
["11943",288,284,"Primula denticulata Prom Deep Rose","semenáč",null,1,"N",null,null,null,null,null,null,null,null,null,null,null,null,4.03,1143.29,0,0]
["11942",288,284,"Primula denticulata Prom Lilac","semenáč",null,1,"N",null,null,null,null,null,null,null,null,null,null,null,null,4.03,1143.29,0,0]
["11941",288,284,"Primula denticulata Prom White","semenáč",null,1,"N",null,null,null,null,null,null,null,null,null,null,null,null,4.03,1143.29,0,0]
["11946",288,284,"Primula japonica Miller`s Crimson","semenáč",null,2,"N",null,null,null,null,null,null,null,null,null,null,null,null,6.79,1927.6,0,0]
["11947",288,284,"Primula rosea Grandiflora","semenáč",null,2,"N",null,null,null,null,null,null,null,null,null,null,null,null,4.72,1339.91,0,0]
["11948",288,284,"Primula veris Bright Yellow","semenáč",null,1,"N",null,null,null,null,null,null,null,null,null,null,null,null,5.22,1481.13,0,0]
["20542",288,284,"Primula veris Golden Yellow","semenáč",null,1,"N",null,null,null,null,null,null,null,null,null,null,null,null,5.22,1481.13,0,0]
["19462",288,284,"Primula veris Lime with Orange","semenáč",null,1,"N",null,null,null,null,null,null,null,null,null,null,null,null,5.22,1481.13,0,0]
["19461",288,284,"Primula veris Orange Red with Yellow","semenáč",null,1,"N",null,null,null,null,null,null,null,null,null,null,null,null,5.22,1481.13,0,0]
["11950",84,84,"Primula vialii Red and Rose","semenáč",null,4,"N",null,null,null,null,null,null,null,null,null,null,null,null,12.56,1054.98,0,0]
["11950",288,284,"Primula vialii Red and Rose","semenáč",null,2,"N",null,null,null,null,null,null,null,null,null,null,null,null,4.46,1266.05,0,0]
["19463",288,284,"Primula x pubescens Mix","semenáč",null,1,"N",null,null,null,null,null,null,null,null,null,null,null,null,8.3800000000000008,2379.5,0,0]
["13762",288,284,"Pritzelago alpina Crystal Carpet","semenáč",null,2,"N",null,null,null,null,null,null,null,null,null,null,null,null,4.8,1363.81,0,0]
["18342",288,284,"Prunella grandiflora Bella Rose","semenáč",null,1,"N",null,null,null,null,null,null,null,null,null,null,null,null,4.38,1244.32,0,0]
["18539",288,284,"Prunella grandiflora Bella Violet Blue","semenáč",null,1,"N",null,null,null,null,null,null,null,null,null,null,null,null,4.38,1244.32,0,0]
["11965",180,178,"Pulsatilla vulgaris Pulsar Red Shades","semenáč",null,2,"N",null,null,null,null,null,null,null,null,null,null,null,null,6.89,1226.3800000000001,0,0]
["11966",180,178,"Pulsatilla vulgaris Pulsar Violet Shades","semenáč",null,2,"N",null,null,null,null,null,null,null,null,null,null,null,null,6.89,1226.3800000000001,0,0]
["11967",180,178,"Pulsatilla vulgaris Pulsar White","semenáč",null,2,"N",null,null,null,null,null,null,null,null,null,null,null,null,6.89,1226.3800000000001,0,0]
["30248",128,126,"Rhodanthemum hosmariense Casablanca","řízek",null,1,"N","A",null,null,null,null,null,null,null,null,null,null,null,10.97,1382.71,0,0]
["30249",128,126,"Rhodanthemum hosmariense Marrakech","řízek",null,1,"N","A",null,null,null,null,null,null,null,null,null,null,null,10.97,1382.71,0,0]
["30970",128,126,"Rhodanthemum hosmariense Sunshine Peach","řízek",null,1,"N","A",null,null,null,null,null,null,null,null,null,null,null,12.13,1528.74,0,0]
["30250",128,126,"Rhodanthemum hosmariense Tangiers","řízek",null,1,"N","A",null,null,null,null,null,null,null,null,null,null,null,10.97,1382.71,0,0]
["35257",128,126,"Rhodanthemum hosmariense Zagora® Orange","řízek",null,1,"N","A",null,null,null,null,null,null,null,null,null,null,null,10.97,1382.71,0,0]
["35256",128,126,"Rhodanthemum hosmariense Zagora® Pink","řízek",null,1,"N","A",null,null,null,null,null,null,null,null,null,null,null,10.97,1382.71,0,0]
["35240",128,126,"Rhodanthemum hosmariense Zagora® Yellow","řízek",null,1,"N","A",null,null,null,null,null,null,null,null,null,null,null,10.97,1382.71,0,0]
["11976",180,178,"Rodgersia pinnata White","semenáč",null,1,"N",null,null,null,null,null,null,null,null,null,null,null,null,6.9,1228.42,0,0]
["37210",84,82,"Rudbeckia fulgida GoldBlitz","semenáč",null,1,"N",null,null,null,null,null,null,null,null,null,null,null,null,18.68,1531.43,0,0]
["37210",180,178,"Rudbeckia fulgida GoldBlitz","semenáč",null,1,"N",null,null,null,null,null,null,null,null,null,null,null,null,11.37,2023.66,0,0]
["11977",84,84,"Rudbeckia fulgida Goldsturm","semenáč",null,2,"N",null,null,null,null,null,null,null,null,null,null,null,null,10.93,918.11,0,0]
["11977",288,284,"Rudbeckia fulgida Goldsturm","semenáč",null,1,"N",null,null,null,null,null,null,null,null,null,null,null,null,4.97,1411.61,0,0]
["43098",84,84,"Rudbeckia hirta Rudy Double Orange","řízek","new",1,"N","A",null,null,null,null,null,null,null,null,null,null,null,44.3,3721.13,0,0]
["37801",84,84,"Rudbeckia hirta Rudy Double Rose Yellow","řízek",null,1,"N","A",null,null,null,null,null,null,null,null,null,null,null,44.3,3721.13,0,0]
["37803",84,84,"Rudbeckia hirta Rudy Double Yellow Lemon","řízek",null,1,"N","A",null,null,null,null,null,null,null,null,null,null,null,44.3,3721.13,0,0]
["37797",84,84,"Rudbeckia hirta Rudy Fire","řízek",null,1,"N","A",null,null,null,null,null,null,null,null,null,null,null,42.39,3560.48,0,0]
["37110",84,84,"Rudbeckia hirta Rudy Mini Yellow","řízek",null,1,"N","A",null,null,null,null,null,null,null,null,null,null,null,42.39,3560.48,0,0]
["37111",84,84,"Rudbeckia hirta Rudy Mini Yellow Black","řízek",null,1,"N","A",null,null,null,null,null,null,null,null,null,null,null,42.39,3560.48,0,0]
["37887",84,84,"Rudbeckia hirta Rudy Mini Yellow Orange","řízek",null,1,"N","A",null,null,null,null,null,null,null,null,null,null,null,42.39,3560.48,0,0]
["37799",84,84,"Rudbeckia hirta Rudy Sunset","řízek",null,1,"N","A",null,null,null,null,null,null,null,null,null,null,null,42.39,3560.48,0,0]
["37796",84,84,"Rudbeckia hirta Rudy Yellow","řízek",null,1,"N","A",null,null,null,null,null,null,null,null,null,null,null,42.39,3560.48,{"$f":"V653*(J653+K653+L653+M653+N653+O653+P653+Q653+R653+S653+T653)","v":0},{"$f":"W653*1.12","v":0}]
["43095",84,84,"Rudbeckia hirta Rudy Yellow Black Cone","řízek","new",1,"N","A",null,null,null,null,null,null,null,null,null,null,null,42.39,3560.48,0,0]
["17353",288,284,"Sagina subulata Supreme","semenáč",null,3,"N",null,null,null,null,null,null,null,null,null,null,null,null,4.47,1269.31,0,0]
["11981",180,178,"Salvia argentea Artemis","semenáč",null,1,"N",null,null,null,null,null,null,null,null,null,null,null,null,6.17,1099.06,0,0]
["37232",128,126,"Salvia greggii Mirage™ Blue","řízek",null,1,"Y","A",null,null,null,null,null,null,null,null,null,null,null,12.6,1587.54,0,0]
["36611",128,126,"Salvia greggii Mirage™ Burgundy","řízek",null,1,"Y","A",null,null,null,null,null,null,null,null,null,null,null,12.6,1587.54,0,0]
["42483",128,126,"Salvia greggii Mirage™ Deep Purple","řízek",null,1,"Y","A",null,null,null,null,null,null,null,null,null,null,null,12.6,1587.54,0,0]
["36615",128,126,"Salvia greggii Mirage™ Hot Pink","řízek",null,1,"Y","A",null,null,null,null,null,null,null,null,null,null,null,12.6,1587.54,0,0]
["36612",128,126,"Salvia greggii Mirage™ Cherry Red","řízek",null,1,"Y","A",null,null,null,null,null,null,null,null,null,null,null,12.6,1587.54,0,0]
["36617",128,126,"Salvia greggii Mirage™ Pink","řízek",null,1,"Y","A",null,null,null,null,null,null,null,null,null,null,null,12.6,1587.54,0,0]
["37233",128,126,"Salvia greggii Mirage™ Rose Bicolour","řízek",null,1,"Y","A",null,null,null,null,null,null,null,null,null,null,null,12.6,1587.54,0,0]
["36619",128,126,"Salvia greggii Mirage™ Soft Pink","řízek",null,1,"Y","A",null,null,null,null,null,null,null,null,null,null,null,12.6,1587.54,0,0]
["36620",128,126,"Salvia greggii Mirage™ Violet","řízek",null,1,"Y","A",null,null,null,null,null,null,null,null,null,null,null,12.6,1587.54,0,0]
["36621",128,126,"Salvia greggii Mirage™ White","řízek",null,1,"Y","A",null,null,null,null,null,null,null,null,null,null,null,12.6,1587.54,0,0]
["11984",288,284,"Salvia nemorosa Blaukönigin®","semenáč",null,2,"N",null,null,null,null,null,null,null,null,null,null,null,null,4.43,1257.3599999999999,0,0]
["19775",128,126,"Salvia nemorosa Caradonna","řízek",null,1,"N",null,null,null,null,null,null,null,null,null,null,null,null,8.4700000000000006,1067.03,0,0]
["34441",128,126,"Salvia nemorosa Caradonna Compact","řízek",null,1,"N","A",null,null,null,null,null,null,null,null,null,null,null,10,1259.81,0,0]
["32412",128,126,"Salvia nemorosa Marvel Blue","řízek",null,1,"N","A",null,null,null,null,null,null,null,null,null,null,null,14.34,1807.31,0,0]
["37822",128,126,"Salvia nemorosa Marvel Dark Blue","řízek",null,1,"N","A",null,null,null,null,null,null,null,null,null,null,null,14.34,1807.31,0,0]
["34821",128,126,"Salvia nemorosa Marvel Rose","řízek",null,1,"N","A",null,null,null,null,null,null,null,null,null,null,null,14.34,1807.31,0,0]
["12775",128,126,"Salvia nemorosa Ostfriesland","řízek",null,1,"N",null,null,null,null,null,null,null,null,null,null,null,null,8.11,1021.25,0,0]
["34532",288,284,"Salvia nemorosa Salvatore Blue","semenáč",null,2,"N",null,null,null,null,null,null,null,null,null,null,null,null,6.85,1944.98,0,0]
["18831",128,126,"Salvia nemorosa Sensation® Compact Bright Rose","řízek",null,1,"N","A",null,null,null,null,null,null,null,null,null,null,null,9.5500000000000007,1202.94,0,0]
["16506",128,126,"Salvia nemorosa Sensation® Compact Deep Blue","řízek",null,1,"N","A",null,null,null,null,null,null,null,null,null,null,null,9.5500000000000007,1202.94,0,0]
["41799",128,126,"Salvia nemorosa Sensation® Compact Rose","řízek",null,1,"N","A",null,null,null,null,null,null,null,null,null,null,null,9.5500000000000007,1202.94,0,0]
["18828",128,126,"Salvia nemorosa Sensation® Compact Violet","řízek",null,1,"N","A",null,null,null,null,null,null,null,null,null,null,null,9.5500000000000007,1202.94,0,0]
["19772",128,126,"Salvia nemorosa Sensation® Compact White","řízek",null,1,"N","A",null,null,null,null,null,null,null,null,null,null,null,9.5500000000000007,1202.94,0,0]
["42996",128,126,"Salvia nemorosa Sensation® Compact White Impr.","řízek","new",1,"N","A",null,null,null,null,null,null,null,null,null,null,null,9.5500000000000007,1202.94,0,0]
["42994",128,126,"Salvia nemorosa Sensation® Medium Blue","řízek","new",1,"N","A",null,null,null,null,null,null,null,null,null,null,null,9.5500000000000007,1202.94,0,0]
["15704",128,126,"Salvia nemorosa Sensation® Medium Deep Blue","řízek",null,1,"N","A",null,null,null,null,null,null,null,null,null,null,null,9.5500000000000007,1202.94,0,0]
["18832",128,126,"Salvia nemorosa Sensation® Medium Pink","řízek",null,1,"N","A",null,null,null,null,null,null,null,null,null,null,null,9.5500000000000007,1202.94,0,0]
["42989",128,126,"Salvia nemorosa Sensation® Medium Rose","řízek","new",1,"N","A",null,null,null,null,null,null,null,null,null,null,null,9.5500000000000007,1202.94,0,0]
["35657",128,126,"Salvia nemorosa Sensation® Medium Violet","řízek",null,1,"N","A",null,null,null,null,null,null,null,null,null,null,null,9.5500000000000007,1202.94,0,0]
["31135",128,126,"Salvia nemorosa Sensation® Medium White","řízek",null,1,"N","A",null,null,null,null,null,null,null,null,null,null,null,9.5500000000000007,1202.94,0,0]
["12776",128,126,"Salvia nemorosa Schneehügel","řízek",null,1,"N",null,null,null,null,null,null,null,null,null,null,null,null,8.66,1090.6500000000001,0,0]
["34747",288,284,"Salvia nemorosa Synchro Blue","semenáč",null,2,"N",null,null,null,null,null,null,null,null,null,null,null,null,5.23,1485.48,0,0]
["34748",288,284,"Salvia nemorosa Synchro Pink","semenáč",null,2,"N",null,null,null,null,null,null,null,null,null,null,null,null,5.23,1485.48,0,0]
["34733",288,284,"Salvia nemorosa Synchro White","semenáč",null,2,"N",null,null,null,null,null,null,null,null,null,null,null,null,5.23,1485.48,0,0]
["15451",84,84,"Salvia patens Patio Dark Blue","semenáč",null,1,"N",null,null,null,null,null,null,null,null,null,null,null,null,14.91,1252.26,0,0]
["15451",288,284,"Salvia patens Patio Dark Blue","semenáč",null,1,"N",null,null,null,null,null,null,null,null,null,null,null,null,6.24,1773.35,0,0]
["14937",288,284,"Salvia roemeriana Hot Trumpets","semenáč",null,2,"N",null,null,null,null,null,null,null,null,null,null,null,null,4.57,1298.6400000000001,0,0]
["14628",128,126,"Salvia sylvestris Mainacht","řízek",null,1,"N",null,null,null,null,null,null,null,null,null,null,null,null,11.95,1506.09,0,0]
["12777",180,178,"Santolina chamaecyparissus","řízek",null,1,"N",null,null,null,null,null,null,null,null,null,null,null,null,8.1300000000000008,1446.3,0,0]
["11988",288,284,"Saponaria ocymoides Rose","semenáč",null,2,"N",null,null,null,null,null,null,null,null,null,null,null,null,3.65,1036.8399999999999,0,0]
["11991",288,284,"Saxifraga x arendsii Carpet Pink","semenáč",null,3,"N",null,null,null,null,null,null,null,null,null,null,null,null,3.6,1022.72,0,0]
["11992",288,284,"Saxifraga x arendsii Carpet Purple Robe","semenáč",null,3,"N",null,null,null,null,null,null,null,null,null,null,null,null,3.6,1022.72,0,0]
["11993",288,284,"Saxifraga x arendsii Carpet White","semenáč",null,3,"N",null,null,null,null,null,null,null,null,null,null,null,null,3.6,1022.72,0,0]
["34412",180,178,"Saxifraga x arendsii Ice Colours Appleblossom","řízek",null,1,"N","A",null,null,null,null,null,null,null,null,null,null,null,9.48,1687.32,0,0]
["38449",180,178,"Saxifraga x arendsii Ice Colours Lime","řízek","new",1,"N","A",null,null,null,null,null,null,null,null,null,null,null,9.48,1687.32,0,0]
["32499",180,178,"Saxifraga x arendsii Ice Colours Pearl White","řízek",null,1,"N","A",null,null,null,null,null,null,null,null,null,null,null,9.48,1687.32,0,0]
["36419",180,178,"Saxifraga x arendsii Ice Colours Red","řízek",null,1,"N","A",null,null,null,null,null,null,null,null,null,null,null,9.48,1687.32,0,0]
["31466",180,178,"Saxifraga x arendsii Limerock","řízek",null,1,"N","A",null,null,null,null,null,null,null,null,null,null,null,8.92,1587.91,0,0]
["31462",180,178,"Saxifraga x arendsii Marto Hot Rose","řízek",null,1,"N","A",null,null,null,null,null,null,null,null,null,null,null,9.48,1687.32,0,0]
["34034",180,178,"Saxifraga x arendsii Marto Picotee Red","řízek",null,1,"N","A",null,null,null,null,null,null,null,null,null,null,null,9.48,1687.32,0,0]
["36414",180,178,"Saxifraga x arendsii Marto Red","řízek",null,1,"N","A",null,null,null,null,null,null,null,null,null,null,null,9.48,1687.32,0,0]
["36422",180,178,"Saxifraga x arendsii Marto Rose Impr.","řízek",null,1,"N","A",null,null,null,null,null,null,null,null,null,null,null,9.48,1687.32,0,0]
["20666",180,178,"Saxifraga x arendsii Marto White","řízek",null,1,"N","A",null,null,null,null,null,null,null,null,null,null,null,9.48,1687.32,0,0]
["31020",180,178,"Saxifraga x arendsii Peter Pan","řízek",null,1,"N",null,null,null,null,null,null,null,null,null,null,null,null,7.39,1315.57,0,0]
["20669",180,178,"Saxifraga x arendsii Pixi Pan Appleblossom","řízek",null,1,"N","A",null,null,null,null,null,null,null,null,null,null,null,8.92,1587.91,0,0]
["20668",180,178,"Saxifraga x arendsii Pixi Pan Red","řízek",null,1,"N","A",null,null,null,null,null,null,null,null,null,null,null,8.92,1587.91,0,0]
["16547",180,178,"Saxifraga x arendsii Pixie Rose","řízek",null,1,"N",null,null,null,null,null,null,null,null,null,null,null,null,7.39,1315.57,0,0]
["14467",180,178,"Saxifraga x arendsii Pixie White","řízek",null,1,"N",null,null,null,null,null,null,null,null,null,null,null,null,7.39,1315.57,0,0]
["30161",288,284,"Saxifraga x arendsii Rockies F1 Red","semenáč",null,1,"N",null,null,null,null,null,null,null,null,null,null,null,null,5.0999999999999996,1447.46,0,0]
["36763",288,284,"Saxifraga x arendsii Rockies F1 White","semenáč",null,1,"N",null,null,null,null,null,null,null,null,null,null,null,null,5.0999999999999996,1447.46,0,0]
["17093",180,178,"Saxifraga x arendsii Saxony Red","řízek",null,1,"N","A",null,null,null,null,null,null,null,null,null,null,null,8.92,1587.91,{"$f":"V717*(J717+K717+L717+M717+N717+O717+P717+Q717+R717+S717+T717)","v":0},{"$f":"W717*1.12","v":0}]
["20667",180,178,"Saxifraga x arendsii Saxony White","řízek",null,1,"N","A",null,null,null,null,null,null,null,null,null,null,null,8.92,1587.91,0,0]
["15720",180,178,"Saxifraga x arendsii White Star","řízek",null,1,"N",null,null,null,null,null,null,null,null,null,null,null,null,7.23,1286.3,0,0]
["11997",180,178,"Scabiosa caucasica Perfecta Alba","semenáč",null,1,"Y",null,null,null,null,null,null,null,null,null,null,null,null,8.73,1553.19,0,0]
["11996",180,178,"Scabiosa caucasica Perfecta Mid Blue","semenáč",null,1,"Y",null,null,null,null,null,null,null,null,null,null,null,null,8.73,1553.19,0,0]
["13712",128,126,"Scabiosa columbaria Butterfly Blue","řízek",null,1,"N",null,null,null,null,null,null,null,null,null,null,null,null,10.56,1330.18,0,0]
["37407",128,126,"Scabiosa columbaria Kudo White","řízek",null,1,"N","A",null,null,null,null,null,null,null,null,null,null,null,15.89,2002.01,0,0]
["19391",128,126,"Scabiosa columbaria Mariposa Blue","řízek",null,1,"N","A",null,null,null,null,null,null,null,null,null,null,null,14.36,1809.23,0,0]
["15279",128,126,"Scabiosa columbaria Pink Mist","řízek",null,1,"N",null,null,null,null,null,null,null,null,null,null,null,null,10.56,1330.18,0,0]
["16552",288,284,"Scabiosa japonica Blue Note","semenáč",null,1,"N",null,null,null,null,null,null,null,null,null,null,null,null,5.42,1539.79,0,0]
["15440",288,284,"Scabiosa japonica Pink Diamonds","semenáč",null,1,"N",null,null,null,null,null,null,null,null,null,null,null,null,5.58,1585.42,0,0]
["18025",180,178,"Sedum acre Aurea","řízek",null,1,"N",null,null,null,null,null,null,null,null,null,null,null,null,7.26,1292.42,0,0]
["12001",288,284,"Sedum acre Yellow","semenáč",null,2,"N",null,null,null,null,null,null,null,null,null,null,null,null,3.71,1053.1300000000001,0,0]
["12003",288,284,"Sedum album","semenáč",null,2,"N",null,null,null,null,null,null,null,null,null,null,null,null,3.71,1053.1300000000001,0,0]
["18028",180,178,"Sedum album Coral Carpet","řízek",null,1,"N",null,null,null,null,null,null,null,null,null,null,null,null,8.6,1531.4,0,0]
["18030",180,178,"Sedum cauticola Lidakense","řízek",null,1,"N",null,null,null,null,null,null,null,null,null,null,null,null,8.86,1577.02,0,0]
["42987",180,178,"Sedum cauticola Sunsparkler® Firecracker","řízek","new",1,"N","A",null,null,null,null,null,null,null,null,null,null,null,15.35,2732.42,0,0]
["42986",180,178,"Sedum cauticola Sunsparkler® Lime Zinger","řízek","new",1,"N","A",null,null,null,null,null,null,null,null,null,null,null,15.35,2732.42,0,0]
["42982",180,178,"Sedum cauticola Sunsparkler® Plum Dazzled","řízek","new",1,"N","A",null,null,null,null,null,null,null,null,null,null,null,15.35,2732.42,0,0]
["18421",288,284,"Sedum floriferum Golden Yellow","semenáč",null,2,"N",null,null,null,null,null,null,null,null,null,null,null,null,4.92,1396.4,0,0]
["16753",288,284,"Sedum forsterianum Oracle","semenáč",null,3,"N",null,null,null,null,null,null,null,null,null,null,null,null,5,1421.39,0,0]
["18034",180,178,"Sedum kamtschaticum Immergrün Bright Yellow","řízek",null,1,"N",null,null,null,null,null,null,null,null,null,null,null,null,8.86,1577.02,0,0]
["18036",180,178,"Sedum kamtschaticum Variegatum","řízek",null,1,"N",null,null,null,null,null,null,null,null,null,null,null,null,8.86,1577.02,0,0]
["18035",180,178,"Sedum makinoi Yellow","řízek",null,1,"N",null,null,null,null,null,null,null,null,null,null,null,null,8.86,1577.02,0,0]
["42948",180,178,"Sedum middendorffianum Yellow Diamonds","řízek","new",1,"N",null,null,null,null,null,null,null,null,null,null,null,null,9.64,1715.91,0,0]
["16449",288,284,"Sedum oreganum","semenáč",null,3,"N",null,null,null,null,null,null,null,null,null,null,null,null,3.71,1053.1300000000001,0,0]
["12004",288,284,"Sedum reflexum","semenáč",null,3,"N",null,null,null,null,null,null,null,null,null,null,null,null,3.71,1053.1300000000001,0,0]
["18040",180,178,"Sedum reflexum Angelina","řízek",null,1,"N",null,null,null,null,null,null,null,null,null,null,null,null,8.86,1577.02,0,0]
["12005",288,284,"Sedum selskianum","semenáč",null,3,"N",null,null,null,null,null,null,null,null,null,null,null,null,3.71,1053.1300000000001,0,0]
["18043",180,178,"Sedum sieboldii Bright Pink","řízek",null,1,"N",null,null,null,null,null,null,null,null,null,null,null,null,8.86,1577.02,0,0]
["13854",128,126,"Sedum spathulifolium Cape Blanco","řízek",null,1,"N",null,null,null,null,null,null,null,null,null,null,null,null,10.83,1364.39,0,0]
["13853",128,126,"Sedum spathulifolium Purpureum","řízek",null,1,"N",null,null,null,null,null,null,null,null,null,null,null,null,10.83,1364.39,0,0]
["12932",128,126,"Sedum spectabile Brilliant","řízek",null,1,"N",null,null,null,null,null,null,null,null,null,null,null,null,12.23,1541.27,0,0]
["12006",288,284,"Sedum spurium Coccineum","semenáč",null,3,"N",null,null,null,null,null,null,null,null,null,null,null,null,3.71,1053.1300000000001,0,0]
["18047",180,178,"Sedum spurium Purpur Winter","řízek",null,1,"N",null,null,null,null,null,null,null,null,null,null,null,null,8.8800000000000008,1581.1,0,0]
["18042",180,178,"Sedum spurium Tricolour","řízek",null,1,"N",null,null,null,null,null,null,null,null,null,null,null,null,8.8800000000000008,1581.1,0,0]
["12933",128,126,"Sedum telephium Autumn Joy","řízek",null,1,"N",null,null,null,null,null,null,null,null,null,null,null,null,12.22,1539.82,0,0]
["37048",128,126,"Sedum telephium La Vie en Rose","řízek",null,1,"N","A",null,null,null,null,null,null,null,null,null,null,null,16.13,2031.9,0,0]
["14273",128,126,"Sedum telephium Matrona","řízek",null,1,"N",null,null,null,null,null,null,null,null,null,null,null,null,12.22,1539.82,0,0]
["32450",128,126,"Sedum telephium Seduction Cherry Chocolate","řízek",null,1,"N","A",null,null,null,null,null,null,null,null,null,null,null,14.25,1795.26,0,0]
["18836",128,126,"Sedum telephium Seduction Pink Passion","řízek",null,1,"N","A",null,null,null,null,null,null,null,null,null,null,null,14.25,1795.26,0,0]
["35081",128,126,"Sedum telephium Seduction Rose Charm","řízek",null,1,"N","A",null,null,null,null,null,null,null,null,null,null,null,14.25,1795.26,0,0]
["35083",128,126,"Sedum telephium Seduction Rosé Soirée","řízek",null,1,"N","A",null,null,null,null,null,null,null,null,null,null,null,14.25,1795.26,0,0]
["18837",128,126,"Sedum telephium Seduction Yellow Delicat","řízek",null,1,"N","A",null,null,null,null,null,null,null,null,null,null,null,14.25,1795.26,0,0]
["12008",288,284,"Sempervivum hybridum Mix","semenáč",null,1,"N",null,null,null,null,null,null,null,null,null,null,null,null,5.23,1486.57,0,0]
["17169",288,284,"Silene alpestris Starry Dreams","semenáč",null,2,"N",null,null,null,null,null,null,null,null,null,null,null,null,5.03,1428.99,0,0]
["12012",288,284,"Silene maritima","semenáč",null,2,"N",null,null,null,null,null,null,null,null,null,null,null,null,3.95,1121.57,0,0]
["12013",288,284,"Silene schafta Rose","semenáč",null,2,"N",null,null,null,null,null,null,null,null,null,null,null,null,4.43,1257.3599999999999,0,0]
["12016",288,284,"Solidago canadensis Goldkind","semenáč",null,2,"N",null,null,null,null,null,null,null,null,null,null,null,null,3.75,1063.99,0,0]
["12019",288,284,"Stachys byzantina","semenáč",null,2,"N",null,null,null,null,null,null,null,null,null,null,null,null,3.73,1059.6500000000001,0,0]
["11317",288,284,"Stipa tenuissima Pony Tails™","semenáč",null,3,"N",null,null,null,null,null,null,null,null,null,null,null,null,3.91,1109.6199999999999,0,0]
["11971",288,284,"Tanacetum coccineum Robinsons Red","semenáč",null,2,"N",null,null,null,null,null,null,null,null,null,null,null,null,3.89,1104.19,0,0]
["11972",288,284,"Tanacetum coccineum Robinsons Rose","semenáč",null,2,"N",null,null,null,null,null,null,null,null,null,null,null,null,3.89,1104.19,0,0]
["12022",288,284,"Tellima grandiflora","semenáč",null,2,"N",null,null,null,null,null,null,null,null,null,null,null,null,3.81,1081.3800000000001,0,0]
["12023",288,284,"Teucrium chamaedrys","semenáč",null,2,"N",null,null,null,null,null,null,null,null,null,null,null,null,4.28,1214.99,0,0]
["12030",288,284,"Tiarella wherryi White","semenáč",null,2,"N",null,null,null,null,null,null,null,null,null,null,null,null,6.7,1902.62,0,0]
["12033",288,284,"Trollius europaeus","semenáč",null,2,"N",null,null,null,null,null,null,null,null,null,null,null,null,7.2,2044.92,0,0]
["12032",288,284,"Trollius chinensis Golden Queen","semenáč",null,2,"N",null,null,null,null,null,null,null,null,null,null,null,null,7.09,2013.42,0,0]
["36428",288,284,"Uncinia rubra","semenáč","new",2,"N",null,null,null,null,null,null,null,null,null,null,null,null,5.39,1531.1,0,0]
["12039",288,284,"Verbascum phoeniceum Mix","semenáč",null,2,"N",null,null,null,null,null,null,null,null,null,null,null,null,3.77,1069.43,0,0]
["41735",84,84,"Verbena bonariensis Bonnie Blue","semenáč",null,2,"N",null,null,null,null,null,null,null,null,null,null,null,null,16.22,1362.47,0,0]
["41735",288,284,"Verbena bonariensis Bonnie Blue","semenáč",null,2,"N",null,null,null,null,null,null,null,null,null,null,null,null,5.23,1485.48,0,0]
["12041",84,84,"Verbena bonariensis Violet Blue","semenáč",null,2,"N",null,null,null,null,null,null,null,null,null,null,null,null,10.71,899.47,0,0]
["12041",288,284,"Verbena bonariensis Violet Blue","semenáč",null,2,"N",null,null,null,null,null,null,null,null,null,null,null,null,3.59,1020.54,0,0]
["41763",128,126,"Verbena canadensis Veracity Purple","řízek","new",1,"Y","A",null,null,null,null,null,null,null,null,null,null,null,14.53,1831.4,{"$f":"V781*(J781+K781+L781+M781+N781+O781+P781+Q781+R781+S781+T781)","v":0},{"$f":"W781*1.12","v":0}]
["36982",128,126,"Verbena canadensis Veracity Rose","řízek",null,1,"Y","A",null,null,null,null,null,null,null,null,null,null,null,14.53,1831.4,0,0]
["42199",84,84,"Verbena rigida Polaris Sky Blue","semenáč",null,3,"N",null,null,null,null,null,null,null,null,null,null,null,null,10.62,891.76,0,0]
["42199",288,284,"Verbena rigida Polaris Sky Blue","semenáč",null,2,"N",null,null,null,null,null,null,null,null,null,null,null,null,4.57,1298.6400000000001,0,0]
["15758",84,84,"Verbena rigida Venosa Lilac","semenáč",null,3,"N",null,null,null,null,null,null,null,null,null,null,null,null,10.62,891.76,0,0]
["15758",288,284,"Verbena rigida Venosa Lilac","semenáč",null,2,"N",null,null,null,null,null,null,null,null,null,null,null,null,4.57,1298.6400000000001,0,0]
["12055",288,284,"Veronica austriaca Royal Blue","semenáč",null,2,"N",null,null,null,null,null,null,null,null,null,null,null,null,3.87,1097.67,0,0]
["12058",288,284,"Veronica gentianoides","semenáč",null,1,"N",null,null,null,null,null,null,null,null,null,null,null,null,3.87,1097.67,0,0]
["12679",180,178,"Veronica peduncularis Georgia Blue","řízek",null,1,"Y",null,null,null,null,null,null,null,null,null,null,null,null,8.3000000000000007,1477.61,0,0]
["12048",288,284,"Veronica repens","semenáč",null,2,"N",null,null,null,null,null,null,null,null,null,null,null,null,4.33,1230.2,0,0]
["35582",128,126,"Veronica spicata Anniversary Blue","řízek",null,1,"N","A",null,null,null,null,null,null,null,null,null,null,null,11.48,1446.33,0,0]
["35586",128,126,"Veronica spicata Anniversary Rose","řízek",null,1,"N","A",null,null,null,null,null,null,null,null,null,null,null,11.48,1446.33,0,0]
["17988",128,126,"Veronica spicata Inspire™ Blue","řízek",null,1,"N","A",null,null,null,null,null,null,null,null,null,null,null,12.94,1630.91,0,0]
["17964",128,126,"Veronica spicata Inspire™ Rose","řízek",null,1,"N","A",null,null,null,null,null,null,null,null,null,null,null,12.94,1630.91,0,0]
["12054",288,284,"Veronica spicata Nana Blauteppich","semenáč",null,2,"N",null,null,null,null,null,null,null,null,null,null,null,null,4.33,1230.2,0,0]
["18537",288,284,"Veronica spicata Rosa Zwerg","semenáč",null,1,"N",null,null,null,null,null,null,null,null,null,null,null,null,4.33,1230.2,0,0]
["17422",128,126,"Veronica spicata Ulster Dwarf Blue","řízek",null,1,"N",null,null,null,null,null,null,null,null,null,null,null,null,9.8800000000000008,1245.3499999999999,0,0]
["12935",128,126,"Vinca major Deep Blue","řízek",null,1,"Y",null,null,null,null,null,null,null,null,null,null,null,null,10.63,1338.85,0,0]
["17297",180,178,"Vinca minor Alba","řízek",null,1,"Y",null,null,null,null,null,null,null,null,null,null,null,null,8.39,1492.59,0,0]
["30410",180,178,"Vinca minor Atropurpurea","řízek",null,1,"Y",null,null,null,null,null,null,null,null,null,null,null,null,8.39,1492.59,0,0]
["12936",180,178,"Vinca minor Blue","řízek",null,1,"Y",null,null,null,null,null,null,null,null,null,null,null,null,8.39,1492.59,0,0]
["15045",128,126,"Viola cornuta Etain","řízek",null,1,"N",null,null,null,null,null,null,null,null,null,null,null,null,10.58,1332.59,0,0]
["13708",128,126,"Viola pubescens Rebecca Cawthorne","řízek",null,1,"N",null,null,null,null,null,null,null,null,null,null,null,null,10.58,1332.59,0,0]